Body,Body name,Date,Transaction number,Amount,Supplier name,Supplier ID,Expense area,Fund type,Expense type
http://thanet.gov.uk/supplierspend,Thanet District Council,02/09/2014,367687,1141.98,Adecco Uk Ltd,ADE005,Chief Executive,Revenue,Employees
http://thanet.gov.uk/supplierspend,Thanet District Council,02/09/2014,366701,9201.00,Channel Commercials Plc,CCO001,Director Corp Resources S151,Balance Sheet,Long Term Assets
http://thanet.gov.uk/supplierspend,Thanet District Council,02/09/2014,367527,4115.00,Cilex Law School Ltd,CIL002,Director Corp Resources S151,Revenue,Employees
http://thanet.gov.uk/supplierspend,Thanet District Council,02/09/2014,367556,1775.00,Commercial Services Trading Ltd,COM048,Director of Community Services,Revenue,Employees
http://thanet.gov.uk/supplierspend,Thanet District Council,02/09/2014,367718,2634.00,Commercial Services Trading Ltd,COM048,Director of Operational Services,Revenue,Transport Related Expenditure
http://thanet.gov.uk/supplierspend,Thanet District Council,02/09/2014,367719,2674.00,Commercial Services Trading Ltd,COM048,Director of Operational Services,Revenue,Transport Related Expenditure
http://thanet.gov.uk/supplierspend,Thanet District Council,02/09/2014,367720,2724.00,Commercial Services Trading Ltd,COM048,Director of Operational Services,Revenue,Transport Related Expenditure
http://thanet.gov.uk/supplierspend,Thanet District Council,02/09/2014,367589,1400.00,Connaught Hotel Dover Limited,CON046,Director of Community Services,Revenue,Supplies and Services
http://thanet.gov.uk/supplierspend,Thanet District Council,02/09/2014,367671,292.75,D & S Supplies,DSS002,Director Corp Resources S151,Revenue,Transport Related Expenditure
http://thanet.gov.uk/supplierspend,Thanet District Council,02/09/2014,367640,379.10,Dennis Eagle Ltd,DEN005,Director Corp Resources S151,Revenue,Transport Related Expenditure
http://thanet.gov.uk/supplierspend,Thanet District Council,02/09/2014,368090,360.00,Dover Counselling Centre,DOV014,Director Corp Resources S151,Revenue,Employees
http://thanet.gov.uk/supplierspend,Thanet District Council,02/09/2014,367433,5004.00,Dover District Council,DOV001,Director Corp Resources S151,Revenue,Employees
http://thanet.gov.uk/supplierspend,Thanet District Council,02/09/2014,367434,2464.39,Dover District Council,DOV001,Director Corp Resources S151,Revenue,Employees
http://thanet.gov.uk/supplierspend,Thanet District Council,02/09/2014,367438,1260.00,Dover District Council,DOV001,Director Corp Resources S151,Revenue,Employees
http://thanet.gov.uk/supplierspend,Thanet District Council,02/09/2014,368108,11250.00,Falcon Consultancy Limited,FAL005,Director of Community Services,Revenue,Supplies and Services
http://thanet.gov.uk/supplierspend,Thanet District Council,02/09/2014,367646,14710.00,G Chittenden,CHI001,Director of Operational Services,Revenue,Premises Related Expenditure
http://thanet.gov.uk/supplierspend,Thanet District Council,02/09/2014,367227,291.80,Gone Crabbing Limited,GON002,Director of Community Services,Revenue,Supplies and Services
http://thanet.gov.uk/supplierspend,Thanet District Council,02/09/2014,367664,750.00,Gulliver'S Truck Hire Limited,GUL001,Director Corp Resources S151,Revenue,Transport Related Expenditure
http://thanet.gov.uk/supplierspend,Thanet District Council,02/09/2014,367588,450.00,Hbinfo Limited,HBI001,East Kent Shared Services,Revenue,Employees
http://thanet.gov.uk/supplierspend,Thanet District Council,02/09/2014,367660,1068.88,Heath Lambert Limited (Client Money),HEA011,Director Corp Resources S151,Balance Sheet,Current Assets
http://thanet.gov.uk/supplierspend,Thanet District Council,02/09/2014,368025,179.25,Holbrook Revell Electrical Ltd,HOL015,Director Corp Resources S151,Balance Sheet,Current Assets
http://thanet.gov.uk/supplierspend,Thanet District Council,02/09/2014,368025,1588.36,Holbrook Revell Electrical Ltd,HOL015,Director of Operational Services,Revenue,Premises Related Expenditure
http://thanet.gov.uk/supplierspend,Thanet District Council,02/09/2014,367949,389.23,Hydraulic & Engineering Servs Ltd,HYD011,Director of Operational Services,Revenue,Supplies and Services
http://thanet.gov.uk/supplierspend,Thanet District Council,02/09/2014,367925,400.00,Jane Chapman,CHA066,Director Corp Resources S151,Revenue,Employees
http://thanet.gov.uk/supplierspend,Thanet District Council,02/09/2014,366693,3000.00,Kent County Council,KCC002,Director of Operational Services,Revenue,Supplies and Services
http://thanet.gov.uk/supplierspend,Thanet District Council,02/09/2014,367499,5942.25,Kent County Council (Kcs),KCC003,Director of Operational Services,Revenue,Supplies and Services
http://thanet.gov.uk/supplierspend,Thanet District Council,02/09/2014,367500,3897.22,Kent County Council (Kcs),KCC003,Director of Operational Services,Revenue,Supplies and Services
http://thanet.gov.uk/supplierspend,Thanet District Council,02/09/2014,367558,305.02,Kent County Council (Kcs),KCC003,Director of Community Services,Revenue,Supplies and Services
http://thanet.gov.uk/supplierspend,Thanet District Council,02/09/2014,367661,197.61,Kent County Council (Kcs),KCC003,Director Corp Resources S151,Revenue,Supplies and Services
http://thanet.gov.uk/supplierspend,Thanet District Council,02/09/2014,367661,3754.59,Kent County Council (Kcs),KCC003,Director of Community Services,Revenue,Supplies and Services
http://thanet.gov.uk/supplierspend,Thanet District Council,02/09/2014,367661,790.44,Kent County Council (Kcs),KCC003,Director of Operational Services,Revenue,Supplies and Services
http://thanet.gov.uk/supplierspend,Thanet District Council,02/09/2014,367661,197.61,Kent County Council (Kcs),KCC003,East Kent Shared Services,Revenue,Supplies and Services
http://thanet.gov.uk/supplierspend,Thanet District Council,02/09/2014,367551,537.80,Loomis Uk Ltd,LOO002,Director of Operational Services,Revenue,Supplies and Services
http://thanet.gov.uk/supplierspend,Thanet District Council,02/09/2014,367893,1626.00,Maha Uk Ltd,MAH002,Director Corp Resources S151,Revenue,Supplies and Services
http://thanet.gov.uk/supplierspend,Thanet District Council,02/09/2014,367679,98798.67,Mears Ltd,MEA003,Director of Community Services,Revenue,Premises Related Expenditure
http://thanet.gov.uk/supplierspend,Thanet District Council,02/09/2014,367681,279.83,Mears Ltd,MEA003,Director of Community Services,Revenue,Premises Related Expenditure
http://thanet.gov.uk/supplierspend,Thanet District Council,02/09/2014,367681,882.26,Mears Ltd,MEA003,Director of Operational Services,Revenue,Premises Related Expenditure
http://thanet.gov.uk/supplierspend,Thanet District Council,02/09/2014,367682,1923.50,Mears Ltd,MEA003,Director of Community Services,Revenue,Premises Related Expenditure
http://thanet.gov.uk/supplierspend,Thanet District Council,02/09/2014,367683,1859.71,Mears Ltd,MEA003,Director of Community Services,Revenue,Premises Related Expenditure
http://thanet.gov.uk/supplierspend,Thanet District Council,02/09/2014,367684,769.78,Mears Ltd,MEA003,Director of Community Services,Revenue,Premises Related Expenditure
http://thanet.gov.uk/supplierspend,Thanet District Council,02/09/2014,368113,67.24,Mears Ltd,MEA003,Director of Community Services,Revenue,Premises Related Expenditure
http://thanet.gov.uk/supplierspend,Thanet District Council,02/09/2014,368113,127.09,Mears Ltd,MEA003,Director of Community Services,Revenue,Premises Related Expenditure
http://thanet.gov.uk/supplierspend,Thanet District Council,02/09/2014,367552,6820.81,Med Clean South Ltd,MED015,Director of Operational Services,Revenue,Premises Related Expenditure
http://thanet.gov.uk/supplierspend,Thanet District Council,02/09/2014,367716,540.00,Michael Page Int Recruitment Ltd,PAG008,Director Corp Resources S151,Revenue,Supplies and Services
http://thanet.gov.uk/supplierspend,Thanet District Council,02/09/2014,367929,4151.25,Michael Page Int Recruitment Ltd,PAG008,Director Corp Resources S151,Revenue,Supplies and Services
http://thanet.gov.uk/supplierspend,Thanet District Council,02/09/2014,367762,11498.41,Ocs Group Uk Ltd T/A Fountains,OCS005,Director Corp Resources S151,Balance Sheet,Current Assets
http://thanet.gov.uk/supplierspend,Thanet District Council,02/09/2014,368110,2169.20,Office For Public Management Ltd,OPM001,Chief Executive,Revenue,Supplies and Services
http://thanet.gov.uk/supplierspend,Thanet District Council,02/09/2014,368093,21252.50,Profile Security Services Limited,PRO018,Director of Operational Services,Revenue,Supplies and Services
http://thanet.gov.uk/supplierspend,Thanet District Council,02/09/2014,367517,298.80,Quarterman Windscreens Llp,QUA011,Director Corp Resources S151,Revenue,Transport Related Expenditure
http://thanet.gov.uk/supplierspend,Thanet District Council,02/09/2014,367598,770.00,R Cannon,CAN007,Director of Operational Services,Revenue,Supplies and Services
http://thanet.gov.uk/supplierspend,Thanet District Council,02/09/2014,367672,900.00,Sellick Partnership Group Ltd,SEL011,Director of Community Services,Revenue,Supplies and Services
http://thanet.gov.uk/supplierspend,Thanet District Council,02/09/2014,367401,975.30,Signway Supplies (Datchet) Limited,SIG013,Director of Operational Services,Revenue,Premises Related Expenditure
http://thanet.gov.uk/supplierspend,Thanet District Council,02/09/2014,367554,254.02,Sparshatts Of Kent Ltd,SPA008,Director Corp Resources S151,Revenue,Transport Related Expenditure
http://thanet.gov.uk/supplierspend,Thanet District Council,02/09/2014,368024,490.00,Stagecoach Services Limited,STA023,Director Corp Resources S151,Balance Sheet,Current Assets
http://thanet.gov.uk/supplierspend,Thanet District Council,02/09/2014,366995,215.48,Swann Of York Limited,SWA009,Director of Community Services,Revenue,Supplies and Services
http://thanet.gov.uk/supplierspend,Thanet District Council,02/09/2014,367584,449.19,The History Press Ltd,HIS002,Director of Community Services,Revenue,Supplies and Services
http://thanet.gov.uk/supplierspend,Thanet District Council,02/09/2014,366628,350.00,W Brazil & Bros,BRA001,Director Corp Resources S151,Balance Sheet,Current Assets
http://thanet.gov.uk/supplierspend,Thanet District Council,05/09/2014,368194,228.00,Canford Audio Plc,CAN008,East Kent Shared Services,Revenue,Supplies and Services
http://thanet.gov.uk/supplierspend,Thanet District Council,05/09/2014,367411,19878.33,Canterbury City Council,CAN004,East Kent Shared Services,Revenue,Supplies and Services
http://thanet.gov.uk/supplierspend,Thanet District Council,05/09/2014,368244,846.90,Carol Peters,PET003,Director of Community Services,Revenue,Supplies and Services
http://thanet.gov.uk/supplierspend,Thanet District Council,05/09/2014,367228,8545.40,Commercial Services Kent Ltd,COM049,Director of Operational Services,Revenue,Supplies and Services
http://thanet.gov.uk/supplierspend,Thanet District Council,05/09/2014,367432,834.00,Dover District Council,DOV001,East Kent Shared Services,Revenue,Employees
http://thanet.gov.uk/supplierspend,Thanet District Council,05/09/2014,367755,706.50,Frontier-Pitts Limited,FRO001,Director of Operational Services,Revenue,Supplies and Services
http://thanet.gov.uk/supplierspend,Thanet District Council,05/09/2014,368260,750.00,Gulliver'S Truck Hire Limited,GUL001,Director Corp Resources S151,Revenue,Transport Related Expenditure
http://thanet.gov.uk/supplierspend,Thanet District Council,05/09/2014,367561,442.52,Hr Go Recruitment Ltd,HRG002,Director Corp Resources S151,Revenue,Employees
http://thanet.gov.uk/supplierspend,Thanet District Council,05/09/2014,367674,433.55,Hr Go Recruitment Ltd,HRG002,Director Corp Resources S151,Revenue,Employees
http://thanet.gov.uk/supplierspend,Thanet District Council,05/09/2014,368103,442.52,Hr Go Recruitment Ltd,HRG002,Director Corp Resources S151,Revenue,Employees
http://thanet.gov.uk/supplierspend,Thanet District Council,05/09/2014,368104,1497.46,Hr Go Recruitment Ltd,HRG002,Director Corp Resources S151,Revenue,Employees
http://thanet.gov.uk/supplierspend,Thanet District Council,05/09/2014,368105,491.97,Hr Go Recruitment Ltd,HRG002,Director Corp Resources S151,Revenue,Employees
http://thanet.gov.uk/supplierspend,Thanet District Council,05/09/2014,368106,9915.62,Hr Go Recruitment Ltd,HRG002,Director Corp Resources S151,Revenue,Employees
http://thanet.gov.uk/supplierspend,Thanet District Council,05/09/2014,368263,616.00,Kenhire Limited,KEN042,Director Corp Resources S151,Revenue,Transport Related Expenditure
http://thanet.gov.uk/supplierspend,Thanet District Council,05/09/2014,368049,3601.95,Kent County Council (Kcs),KCC003,Director of Operational Services,Revenue,Supplies and Services
http://thanet.gov.uk/supplierspend,Thanet District Council,05/09/2014,368051,6792.19,Kent County Council (Kcs),KCC003,Director of Operational Services,Revenue,Supplies and Services
http://thanet.gov.uk/supplierspend,Thanet District Council,05/09/2014,368052,4844.08,Kent County Council (Kcs),KCC003,Director of Operational Services,Revenue,Supplies and Services
http://thanet.gov.uk/supplierspend,Thanet District Council,05/09/2014,368249,219.80,Lister Wilder Limited,LIS002,Director of Operational Services,Revenue,Supplies and Services
http://thanet.gov.uk/supplierspend,Thanet District Council,05/09/2014,367568,315.00,Magees Guesthouse,MAG009,Director of Community Services,Revenue,Supplies and Services
http://thanet.gov.uk/supplierspend,Thanet District Council,05/09/2014,367560,640.84,Morgan Jones Ltd,MOR001,Director Corp Resources S151,Revenue,Employees
http://thanet.gov.uk/supplierspend,Thanet District Council,05/09/2014,367662,644.77,Neopost Ltd,NEO003,Director Corp Resources S151,Revenue,Supplies and Services
http://thanet.gov.uk/supplierspend,Thanet District Council,05/09/2014,367725,258.17,Ocs Group Uk Ltd T/A Fountains,OCS005,Director of Community Services,Revenue,Premises Related Expenditure
http://thanet.gov.uk/supplierspend,Thanet District Council,05/09/2014,367731,1160.89,Ocs Group Uk Ltd T/A Fountains,OCS005,Director of Community Services,Revenue,Premises Related Expenditure
http://thanet.gov.uk/supplierspend,Thanet District Council,05/09/2014,367735,670.48,Ocs Group Uk Ltd T/A Fountains,OCS005,Director of Operational Services,Revenue,Premises Related Expenditure
http://thanet.gov.uk/supplierspend,Thanet District Council,05/09/2014,367741,244.54,Ocs Group Uk Ltd T/A Fountains,OCS005,Director of Operational Services,Revenue,Premises Related Expenditure
http://thanet.gov.uk/supplierspend,Thanet District Council,05/09/2014,367745,433.47,Ocs Group Uk Ltd T/A Fountains,OCS005,Director of Operational Services,Revenue,Premises Related Expenditure
http://thanet.gov.uk/supplierspend,Thanet District Council,05/09/2014,366712,745.00,P Lawrence & Son,LAW001,Director of Operational Services,Revenue,Premises Related Expenditure
http://thanet.gov.uk/supplierspend,Thanet District Council,05/09/2014,367895,1650.00,Premier Signs,PRE027,Director Corp Resources S151,Balance Sheet,Long Term Assets
http://thanet.gov.uk/supplierspend,Thanet District Council,05/09/2014,367896,297.50,Premier Signs,PRE027,Director Corp Resources S151,Revenue,Transport Related Expenditure
http://thanet.gov.uk/supplierspend,Thanet District Council,05/09/2014,367169,659.08,Royal Mail,ROY004,Director Corp Resources S151,Revenue,Supplies and Services
http://thanet.gov.uk/supplierspend,Thanet District Council,05/09/2014,367443,4034.17,Royal Mail,ROY004,Director Corp Resources S151,Revenue,Supplies and Services
http://thanet.gov.uk/supplierspend,Thanet District Council,05/09/2014,367717,1086.99,Royal Mail,ROY004,Director Corp Resources S151,Revenue,Supplies and Services
http://thanet.gov.uk/supplierspend,Thanet District Council,05/09/2014,367911,3693.80,Royal Mail,ROY004,Director Corp Resources S151,Revenue,Supplies and Services
http://thanet.gov.uk/supplierspend,Thanet District Council,05/09/2014,367673,1889.90,Sellick Partnership Group Ltd,SEL011,Director Corp Resources S151,Revenue,Supplies and Services
http://thanet.gov.uk/supplierspend,Thanet District Council,05/09/2014,368100,900.00,Sellick Partnership Group Ltd,SEL011,Director of Community Services,Revenue,Supplies and Services
http://thanet.gov.uk/supplierspend,Thanet District Council,05/09/2014,367779,1829.16,The Glenwood Hotel,GLE007,Director of Community Services,Revenue,Supplies and Services
http://thanet.gov.uk/supplierspend,Thanet District Council,05/09/2014,367780,1662.49,The Glenwood Hotel,GLE007,Director of Community Services,Revenue,Supplies and Services
http://thanet.gov.uk/supplierspend,Thanet District Council,05/09/2014,368246,392.00,Westbury Industrial Supplies Ltd,WES042,Director of Operational Services,Revenue,Supplies and Services
http://thanet.gov.uk/supplierspend,Thanet District Council,10/09/2014,367657,350.00,All Access Ltd,ALL031,Director of Community Services,Revenue,Premises Related Expenditure
http://thanet.gov.uk/supplierspend,Thanet District Council,10/09/2014,368442,129.25,Allstar Business Solutions Ltd,ALL038,Director Corp Resources S151,Revenue,Transport Related Expenditure
http://thanet.gov.uk/supplierspend,Thanet District Council,10/09/2014,368442,385.17,Allstar Business Solutions Ltd,ALL038,Director of Operational Services,Revenue,Transport Related Expenditure
http://thanet.gov.uk/supplierspend,Thanet District Council,10/09/2014,368511,373.50,Ass Of Electoral Administrators,AEA001,Director Corp Resources S151,Revenue,Supplies and Services
http://thanet.gov.uk/supplierspend,Thanet District Council,10/09/2014,367641,1001.00,Asset Security & Protection Ltd,ASS015,Director of Community Services,Revenue,Supplies and Services
http://thanet.gov.uk/supplierspend,Thanet District Council,10/09/2014,367829,-214.00,Batcheller Monkhouse,BAT007,Director of Community Services,Revenue,Supplies and Services
http://thanet.gov.uk/supplierspend,Thanet District Council,10/09/2014,367830,1369.60,Batcheller Monkhouse,BAT007,Director of Community Services,Revenue,Supplies and Services
http://thanet.gov.uk/supplierspend,Thanet District Council,10/09/2014,368574,214.00,Batcheller Monkhouse,BAT007,Director of Community Services,Revenue,Supplies and Services
http://thanet.gov.uk/supplierspend,Thanet District Council,10/09/2014,368510,2600.00,Bradstowe Chartered Surveyors,BRA027,Director of Community Services,Revenue,Supplies and Services
http://thanet.gov.uk/supplierspend,Thanet District Council,10/09/2014,368490,6362.00,Bramling Construction Ltd,BRA020,Director Corp Resources S151,Balance Sheet,Long Term Assets
http://thanet.gov.uk/supplierspend,Thanet District Council,10/09/2014,368493,6900.00,Bramling Construction Ltd,BRA020,Director Corp Resources S151,Balance Sheet,Long Term Assets
http://thanet.gov.uk/supplierspend,Thanet District Council,10/09/2014,367217,2120.00,Bridge Security Cctv Ltd,BRI039,Director of Community Services,Revenue,Supplies and Services
http://thanet.gov.uk/supplierspend,Thanet District Council,10/09/2014,368065,1990.66,Bt Payment Services Ltd,BTE003,Director Corp Resources S151,Balance Sheet,Current Assets
http://thanet.gov.uk/supplierspend,Thanet District Council,10/09/2014,367938,2564.97,Call Flow Solutions Limited,CAL006,Director of Community Services,Revenue,Supplies and Services
http://thanet.gov.uk/supplierspend,Thanet District Council,10/09/2014,367945,3750.00,Call Flow Solutions Limited,CAL006,Director of Community Services,Revenue,Supplies and Services
http://thanet.gov.uk/supplierspend,Thanet District Council,10/09/2014,368208,1600.00,Canterbury Scaffolding,CAN023,Director Corp Resources S151,Balance Sheet,Long Term Assets
http://thanet.gov.uk/supplierspend,Thanet District Council,10/09/2014,368209,1600.00,Canterbury Scaffolding,CAN023,Director Corp Resources S151,Balance Sheet,Long Term Assets
http://thanet.gov.uk/supplierspend,Thanet District Council,10/09/2014,367924,500.40,Corporate Direct (Europe) Ltd,COR006,East Kent Shared Services,Revenue,Supplies and Services
http://thanet.gov.uk/supplierspend,Thanet District Council,10/09/2014,367909,1362.94,Delron Services Limited,DEL005,Director of Community Services,Revenue,Premises Related Expenditure
http://thanet.gov.uk/supplierspend,Thanet District Council,10/09/2014,368495,4400.00,Dolphin Lifts Kent,DOL003,Director Corp Resources S151,Balance Sheet,Long Term Assets
http://thanet.gov.uk/supplierspend,Thanet District Council,10/09/2014,368499,2100.00,Dolphin Lifts Kent,DOL003,Director Corp Resources S151,Balance Sheet,Long Term Assets
http://thanet.gov.uk/supplierspend,Thanet District Council,10/09/2014,368504,4700.00,Dolphin Lifts Kent,DOL003,Director Corp Resources S151,Balance Sheet,Long Term Assets
http://thanet.gov.uk/supplierspend,Thanet District Council,10/09/2014,367437,900.00,Dover District Council,DOV001,East Kent Shared Services,Revenue,Employees
http://thanet.gov.uk/supplierspend,Thanet District Council,10/09/2014,367650,725.39,E Saunders Margate Ltd,SAU001,Director Corp Resources S151,Balance Sheet,Current Assets
http://thanet.gov.uk/supplierspend,Thanet District Council,10/09/2014,367651,1551.29,E Saunders Margate Ltd,SAU001,Director Corp Resources S151,Balance Sheet,Current Assets
http://thanet.gov.uk/supplierspend,Thanet District Council,10/09/2014,367652,669.13,E Saunders Margate Ltd,SAU001,Director Corp Resources S151,Balance Sheet,Current Assets
http://thanet.gov.uk/supplierspend,Thanet District Council,10/09/2014,367663,750.00,Eagle Security Systems,EAG005,Director of Operational Services,Revenue,Premises Related Expenditure
http://thanet.gov.uk/supplierspend,Thanet District Council,10/09/2014,368506,5443.59,Electoral Reform Services,ELE010,Director Corp Resources S151,Revenue,Supplies and Services
http://thanet.gov.uk/supplierspend,Thanet District Council,10/09/2014,368507,22396.98,Electoral Reform Services,ELE010,Director Corp Resources S151,Revenue,Supplies and Services
http://thanet.gov.uk/supplierspend,Thanet District Council,10/09/2014,368508,5614.35,Electoral Reform Services,ELE010,Director Corp Resources S151,Revenue,Supplies and Services
http://thanet.gov.uk/supplierspend,Thanet District Council,10/09/2014,368494,3650.40,Evermech Services Ltd,EVE011,Director Corp Resources S151,Balance Sheet,Long Term Assets
http://thanet.gov.uk/supplierspend,Thanet District Council,10/09/2014,368245,916.46,Falcon Consultancy Limited,FAL005,Director of Community Services,Revenue,Supplies and Services
http://thanet.gov.uk/supplierspend,Thanet District Council,10/09/2014,368492,832.00,Family Mosaic Housing,FAM001,Director Corp Resources S151,Balance Sheet,Long Term Assets
http://thanet.gov.uk/supplierspend,Thanet District Council,10/09/2014,368497,717.88,Family Mosaic Housing,FAM001,Director Corp Resources S151,Balance Sheet,Long Term Assets
http://thanet.gov.uk/supplierspend,Thanet District Council,10/09/2014,368500,602.64,Family Mosaic Housing,FAM001,Director Corp Resources S151,Balance Sheet,Long Term Assets
http://thanet.gov.uk/supplierspend,Thanet District Council,10/09/2014,368502,1000.80,Family Mosaic Housing,FAM001,Director Corp Resources S151,Balance Sheet,Long Term Assets
http://thanet.gov.uk/supplierspend,Thanet District Council,10/09/2014,368505,1495.00,Family Mosaic Housing,FAM001,Director Corp Resources S151,Balance Sheet,Long Term Assets
http://thanet.gov.uk/supplierspend,Thanet District Council,10/09/2014,367918,375.00,Hi Way Services Ltd,HIW002,Director of Operational Services,Revenue,Premises Related Expenditure
http://thanet.gov.uk/supplierspend,Thanet District Council,10/09/2014,367930,6610.73,Holbrook Revell Electrical Ltd,HOL015,Director of Operational Services,Revenue,Premises Related Expenditure
http://thanet.gov.uk/supplierspend,Thanet District Council,10/09/2014,367676,11344.00,Hr Go Recruitment Ltd,HRG002,Director Corp Resources S151,Revenue,Employees
http://thanet.gov.uk/supplierspend,Thanet District Council,10/09/2014,367677,8923.15,Hr Go Recruitment Ltd,HRG002,Director Corp Resources S151,Revenue,Employees
http://thanet.gov.uk/supplierspend,Thanet District Council,10/09/2014,368230,11071.95,Hr Go Recruitment Ltd,HRG002,Director Corp Resources S151,Revenue,Employees
http://thanet.gov.uk/supplierspend,Thanet District Council,10/09/2014,368231,6965.53,Hr Go Recruitment Ltd,HRG002,Director Corp Resources S151,Revenue,Employees
http://thanet.gov.uk/supplierspend,Thanet District Council,10/09/2014,367026,345.86,Insight Direct (Uk) Ltd,INS013,Director of Operational Services,Revenue,Supplies and Services
http://thanet.gov.uk/supplierspend,Thanet District Council,10/09/2014,367026,691.72,Insight Direct (Uk) Ltd,INS013,East Kent Shared Services,Revenue,Supplies and Services
http://thanet.gov.uk/supplierspend,Thanet District Council,10/09/2014,367231,345.86,Insight Direct (Uk) Ltd,INS013,East Kent Shared Services,Revenue,Supplies and Services
http://thanet.gov.uk/supplierspend,Thanet District Council,10/09/2014,367905,38947.66,Jenner (Contractors) Ltd,JEN002,Director Corp Resources S151,Balance Sheet,Long Term Assets
http://thanet.gov.uk/supplierspend,Thanet District Council,10/09/2014,367906,44515.27,Jenner (Contractors) Ltd,JEN002,Director Corp Resources S151,Balance Sheet,Long Term Assets
http://thanet.gov.uk/supplierspend,Thanet District Council,10/09/2014,368491,681.24,John Gale,GAL001,Director Corp Resources S151,Balance Sheet,Long Term Assets
http://thanet.gov.uk/supplierspend,Thanet District Council,10/09/2014,368064,1706.00,Keith Tait,TAI001,Director of Operational Services,Revenue,Premises Related Expenditure
http://thanet.gov.uk/supplierspend,Thanet District Council,10/09/2014,368243,1790.00,Keith Tait,TAI001,Director of Operational Services,Revenue,Premises Related Expenditure
http://thanet.gov.uk/supplierspend,Thanet District Council,10/09/2014,367496,1681.70,Keltic Ltd,KEL007,Director of Operational Services,Revenue,Supplies and Services
http://thanet.gov.uk/supplierspend,Thanet District Council,10/09/2014,367692,4872.00,Kent County Council,KCC002,Director of Community Services,Revenue,Supplies and Services
http://thanet.gov.uk/supplierspend,Thanet District Council,10/09/2014,367658,12990.00,Kent County Council (Kcs),KCC003,Director Corp Resources S151,Revenue,Transport Related Expenditure
http://thanet.gov.uk/supplierspend,Thanet District Council,10/09/2014,368267,692.44,L W Burt & Son Ltd,BUR027,Director of Community Services,Revenue,Premises Related Expenditure
http://thanet.gov.uk/supplierspend,Thanet District Council,10/09/2014,368268,677.63,L W Burt & Son Ltd,BUR027,Director of Community Services,Revenue,Premises Related Expenditure
http://thanet.gov.uk/supplierspend,Thanet District Council,10/09/2014,368269,662.88,L W Burt & Son Ltd,BUR027,Director of Community Services,Revenue,Premises Related Expenditure
http://thanet.gov.uk/supplierspend,Thanet District Council,10/09/2014,368530,460.50,Lawrence Ehc Ltd,LAW023,Director of Community Services,Revenue,Supplies and Services
http://thanet.gov.uk/supplierspend,Thanet District Council,10/09/2014,367479,648.75,Leanne Bain,BAI007,Director of Community Services,Revenue,Supplies and Services
http://thanet.gov.uk/supplierspend,Thanet District Council,10/09/2014,368256,290.00,M D Electrics,MDE001,Director of Community Services,Revenue,Premises Related Expenditure
http://thanet.gov.uk/supplierspend,Thanet District Council,10/09/2014,368257,600.00,M D Electrics,MDE001,Director of Community Services,Revenue,Premises Related Expenditure
http://thanet.gov.uk/supplierspend,Thanet District Council,10/09/2014,368251,1950.00,Maxwells Grounds Maintenance Ltd,MAX002,Director of Operational Services,Revenue,Premises Related Expenditure
http://thanet.gov.uk/supplierspend,Thanet District Council,10/09/2014,368193,726.74,Mears Ltd,MEA003,Director of Community Services,Revenue,Premises Related Expenditure
http://thanet.gov.uk/supplierspend,Thanet District Council,10/09/2014,367899,662.24,Mems Power Generation,MEM001,Director of Community Services,Revenue,Premises Related Expenditure
http://thanet.gov.uk/supplierspend,Thanet District Council,10/09/2014,367486,502.00,Michelle Williams,WIL064,Director of Community Services,Revenue,Supplies and Services
http://thanet.gov.uk/supplierspend,Thanet District Council,10/09/2014,368266,389.70,Morgan Jones Ltd,MOR001,Director Corp Resources S151,Revenue,Employees
http://thanet.gov.uk/supplierspend,Thanet District Council,10/09/2014,367572,480.00,Mr Guy Williams,WIL068,Director of Community Services,Revenue,Supplies and Services
http://thanet.gov.uk/supplierspend,Thanet District Council,10/09/2014,367838,223.09,Museums & Galleries Limited,MUS004,Director of Community Services,Revenue,Supplies and Services
http://thanet.gov.uk/supplierspend,Thanet District Council,10/09/2014,368224,5869.43,National Express Ltd,NAT010,Director of Community Services,Revenue,Supplies and Services
http://thanet.gov.uk/supplierspend,Thanet District Council,10/09/2014,367827,256.64,Nauticalia Limited,NAU001,Director of Community Services,Revenue,Supplies and Services
http://thanet.gov.uk/supplierspend,Thanet District Council,10/09/2014,368066,366.53,O2 (Uk) Ltd,O2U001,Director of Operational Services,Revenue,Supplies and Services
http://thanet.gov.uk/supplierspend,Thanet District Council,10/09/2014,367733,17283.36,Ocs Group Uk Ltd T/A Fountains,OCS005,Director of Operational Services,Revenue,Premises Related Expenditure
http://thanet.gov.uk/supplierspend,Thanet District Council,10/09/2014,367738,494.53,Ocs Group Uk Ltd T/A Fountains,OCS005,Director of Operational Services,Revenue,Premises Related Expenditure
http://thanet.gov.uk/supplierspend,Thanet District Council,10/09/2014,367748,748.31,Ocs Group Uk Ltd T/A Fountains,OCS005,Director of Operational Services,Revenue,Premises Related Expenditure
http://thanet.gov.uk/supplierspend,Thanet District Council,10/09/2014,368088,292.72,Orange Personal Communications Ltd,ORA002,Director Corp Resources S151,Revenue,Supplies and Services
http://thanet.gov.uk/supplierspend,Thanet District Council,10/09/2014,367210,297.64,Orbis Protect Limited,ORB009,Director Corp Resources S151,Revenue,Supplies and Services
http://thanet.gov.uk/supplierspend,Thanet District Council,10/09/2014,367540,274.39,Phoenix Software Ltd,PHO002,East Kent Shared Services,Revenue,Supplies and Services
http://thanet.gov.uk/supplierspend,Thanet District Council,10/09/2014,367398,300.00,Pie Factory Music,PIE003,Director of Community Services,Revenue,Premises Related Expenditure
http://thanet.gov.uk/supplierspend,Thanet District Council,10/09/2014,368496,5949.00,Precept Cs Ltd,PRE032,Director Corp Resources S151,Balance Sheet,Long Term Assets
http://thanet.gov.uk/supplierspend,Thanet District Council,10/09/2014,368503,8340.00,Precept Cs Ltd,PRE032,Director Corp Resources S151,Balance Sheet,Long Term Assets
http://thanet.gov.uk/supplierspend,Thanet District Council,10/09/2014,368501,5022.00,Premiere Projects Limited,PRE022,Director Corp Resources S151,Balance Sheet,Long Term Assets
http://thanet.gov.uk/supplierspend,Thanet District Council,10/09/2014,368262,3666.00,Rigby Taylor Ltd,RIG002,Director of Operational Services,Revenue,Supplies and Services
http://thanet.gov.uk/supplierspend,Thanet District Council,10/09/2014,368532,280000.00,Robinson Allfree,ROB005,Director Corp Resources S151,Balance Sheet,Long Term Assets
http://thanet.gov.uk/supplierspend,Thanet District Council,10/09/2014,367842,4000.00,Rostrvm Solutions Ltd,ROS019,East Kent Shared Services,Revenue,Supplies and Services
http://thanet.gov.uk/supplierspend,Thanet District Council,10/09/2014,367916,218.58,Royal Mail,ROY004,Director Corp Resources S151,Revenue,Supplies and Services
http://thanet.gov.uk/supplierspend,Thanet District Council,10/09/2014,368265,2396.94,Sellick Partnership Group Ltd,SEL011,Director Corp Resources S151,Revenue,Supplies and Services
http://thanet.gov.uk/supplierspend,Thanet District Council,10/09/2014,368228,33379.90,Solent Marine Ltd,SOL011,Director Corp Resources S151,Balance Sheet,Long Term Assets
http://thanet.gov.uk/supplierspend,Thanet District Council,10/09/2014,367314,9794.27,Southern Electric,SEL007,Director of Community Services,Revenue,Premises Related Expenditure
http://thanet.gov.uk/supplierspend,Thanet District Council,10/09/2014,367530,530.34,Southern Electric,SEL007,Director of Operational Services,Revenue,Premises Related Expenditure
http://thanet.gov.uk/supplierspend,Thanet District Council,10/09/2014,367777,-9794.27,Southern Electric,SEL007,Director of Community Services,Revenue,Premises Related Expenditure
http://thanet.gov.uk/supplierspend,Thanet District Council,10/09/2014,367793,9793.23,Southern Electric,SEL007,Director of Community Services,Revenue,Premises Related Expenditure
http://thanet.gov.uk/supplierspend,Thanet District Council,10/09/2014,367794,367.99,Southern Electric,SEL007,Director of Operational Services,Revenue,Premises Related Expenditure
http://thanet.gov.uk/supplierspend,Thanet District Council,10/09/2014,367795,2624.40,Southern Electric,SEL007,Director of Operational Services,Revenue,Premises Related Expenditure
http://thanet.gov.uk/supplierspend,Thanet District Council,10/09/2014,367845,777.80,Southern Electric,SEL007,Director of Operational Services,Revenue,Premises Related Expenditure
http://thanet.gov.uk/supplierspend,Thanet District Council,10/09/2014,367850,276.26,Southern Electric,SEL007,Director of Operational Services,Revenue,Premises Related Expenditure
http://thanet.gov.uk/supplierspend,Thanet District Council,10/09/2014,367855,1141.71,Southern Electric,SEL007,Director of Operational Services,Revenue,Premises Related Expenditure
http://thanet.gov.uk/supplierspend,Thanet District Council,10/09/2014,368026,-1143.32,Southern Electric,SEL007,Director of Operational Services,Revenue,Premises Related Expenditure
http://thanet.gov.uk/supplierspend,Thanet District Council,10/09/2014,368027,-401.97,Southern Electric,SEL007,Director of Operational Services,Revenue,Premises Related Expenditure
http://thanet.gov.uk/supplierspend,Thanet District Council,10/09/2014,368030,-1005.53,Southern Electric,SEL007,Director of Operational Services,Revenue,Premises Related Expenditure
http://thanet.gov.uk/supplierspend,Thanet District Council,10/09/2014,368031,-956.55,Southern Electric,SEL007,Director of Operational Services,Revenue,Premises Related Expenditure
http://thanet.gov.uk/supplierspend,Thanet District Council,10/09/2014,368032,-590.52,Southern Electric,SEL007,Director of Operational Services,Revenue,Premises Related Expenditure
http://thanet.gov.uk/supplierspend,Thanet District Council,10/09/2014,368053,322.46,Southern Electric,SEL007,Director of Operational Services,Revenue,Premises Related Expenditure
http://thanet.gov.uk/supplierspend,Thanet District Council,10/09/2014,368055,333.84,Southern Electric,SEL007,Director of Operational Services,Revenue,Premises Related Expenditure
http://thanet.gov.uk/supplierspend,Thanet District Council,10/09/2014,368060,334.47,Southern Electric,SEL007,Director of Operational Services,Revenue,Premises Related Expenditure
http://thanet.gov.uk/supplierspend,Thanet District Council,10/09/2014,368061,351.53,Southern Electric,SEL007,Director of Operational Services,Revenue,Premises Related Expenditure
http://thanet.gov.uk/supplierspend,Thanet District Council,10/09/2014,368062,321.03,Southern Electric,SEL007,Director of Operational Services,Revenue,Premises Related Expenditure
http://thanet.gov.uk/supplierspend,Thanet District Council,10/09/2014,368067,263.13,Southern Electric,SEL007,Director of Community Services,Revenue,Premises Related Expenditure
http://thanet.gov.uk/supplierspend,Thanet District Council,10/09/2014,368070,390.75,Southern Electric,SEL007,Director of Community Services,Revenue,Premises Related Expenditure
http://thanet.gov.uk/supplierspend,Thanet District Council,10/09/2014,368077,733.17,Southern Electric,SEL007,Director of Community Services,Revenue,Premises Related Expenditure
http://thanet.gov.uk/supplierspend,Thanet District Council,10/09/2014,368080,291.21,Southern Electric,SEL007,Director of Operational Services,Revenue,Premises Related Expenditure
http://thanet.gov.uk/supplierspend,Thanet District Council,10/09/2014,368083,311.23,Southern Electric,SEL007,Director of Operational Services,Revenue,Premises Related Expenditure
http://thanet.gov.uk/supplierspend,Thanet District Council,10/09/2014,368322,-530.34,Southern Electric,SEL007,Director of Operational Services,Revenue,Premises Related Expenditure
http://thanet.gov.uk/supplierspend,Thanet District Council,10/09/2014,368323,-524.34,Southern Electric,SEL007,Director of Operational Services,Revenue,Premises Related Expenditure
http://thanet.gov.uk/supplierspend,Thanet District Council,10/09/2014,367678,372.84,Stand Fast,STA003,Director of Operational Services,Revenue,Supplies and Services
http://thanet.gov.uk/supplierspend,Thanet District Council,10/09/2014,367917,340.00,Straight Plc,STR021,Director of Operational Services,Revenue,Supplies and Services
http://thanet.gov.uk/supplierspend,Thanet District Council,10/09/2014,367908,249.30,Thanet Waste Services Ltd,TWA001,Director of Operational Services,Revenue,Third Party Payments
http://thanet.gov.uk/supplierspend,Thanet District Council,10/09/2014,367680,815.64,The Grass Group,GRA045,Director of Operational Services,Revenue,Supplies and Services
http://thanet.gov.uk/supplierspend,Thanet District Council,10/09/2014,368271,214.50,Timeplan Fuel Solutions Ltd,TIM007,Director Corp Resources S151,Revenue,Supplies and Services
http://thanet.gov.uk/supplierspend,Thanet District Council,10/09/2014,367557,7928.80,Trowers & Hamlins,TRO001,Director Corp Resources S151,Balance Sheet,Long Term Assets
http://thanet.gov.uk/supplierspend,Thanet District Council,10/09/2014,367690,249.50,Watling Tyre Service Ltd,WAT003,Director of Operational Services,Revenue,Transport Related Expenditure
http://thanet.gov.uk/supplierspend,Thanet District Council,10/09/2014,368513,2000.00,Westgate Community Centre Ass.,WES015,Director of Community Services,Revenue,Supplies and Services
http://thanet.gov.uk/supplierspend,Thanet District Council,10/09/2014,368047,2650.00,White'S Transport Limited,WHI043,Director Corp Resources S151,Balance Sheet,Long Term Assets
http://thanet.gov.uk/supplierspend,Thanet District Council,10/09/2014,367538,823.50,Wise Handling Limited,WIS001,Director of Operational Services,Revenue,Premises Related Expenditure
http://thanet.gov.uk/supplierspend,Thanet District Council,10/09/2014,367229,310.00,Xma Ltd,XMA001,East Kent Shared Services,Revenue,Supplies and Services
http://thanet.gov.uk/supplierspend,Thanet District Council,10/09/2014,367419,271417.73,Your Leisure Kent Limited,YOU016,Director Corp Resources S151,Balance Sheet,Current Assets
http://thanet.gov.uk/supplierspend,Thanet District Council,16/09/2014,368191,320.00,A & S Self Storage Limited,ASS017,Director of Community Services,Revenue,Supplies and Services
http://thanet.gov.uk/supplierspend,Thanet District Council,16/09/2014,368312,459.55,Albion Fencing&Construction Kent Ltd,ALB005,Director of Operational Services,Revenue,Supplies and Services
http://thanet.gov.uk/supplierspend,Thanet District Council,16/09/2014,368313,1550.00,Albion Fencing&Construction Kent Ltd,ALB005,Director of Operational Services,Revenue,Supplies and Services
http://thanet.gov.uk/supplierspend,Thanet District Council,16/09/2014,368366,484.00,All Access Ltd,ALL031,Director Corp Resources S151,Balance Sheet,Current Assets
http://thanet.gov.uk/supplierspend,Thanet District Council,16/09/2014,368458,637.50,All Sign Solutions Ltd,ALL002,Director of Operational Services,Revenue,Supplies and Services
http://thanet.gov.uk/supplierspend,Thanet District Council,16/09/2014,368461,825.00,All Sign Solutions Ltd,ALL002,Director Corp Resources S151,Balance Sheet,Long Term Assets
http://thanet.gov.uk/supplierspend,Thanet District Council,16/09/2014,368463,445.00,All Sign Solutions Ltd,ALL002,Director of Operational Services,Revenue,Premises Related Expenditure
http://thanet.gov.uk/supplierspend,Thanet District Council,16/09/2014,368467,825.00,All Sign Solutions Ltd,ALL002,Director Corp Resources S151,Revenue,Supplies and Services
http://thanet.gov.uk/supplierspend,Thanet District Council,16/09/2014,368471,508.00,All Sign Solutions Ltd,ALL002,Director of Operational Services,Revenue,Supplies and Services
http://thanet.gov.uk/supplierspend,Thanet District Council,16/09/2014,368472,285.00,All Sign Solutions Ltd,ALL002,Director Corp Resources S151,Revenue,Supplies and Services
http://thanet.gov.uk/supplierspend,Thanet District Council,16/09/2014,368982,159.02,Allstar Business Solutions Ltd,ALL038,Director Corp Resources S151,Revenue,Transport Related Expenditure
http://thanet.gov.uk/supplierspend,Thanet District Council,16/09/2014,368982,314.53,Allstar Business Solutions Ltd,ALL038,Director of Operational Services,Revenue,Transport Related Expenditure
http://thanet.gov.uk/supplierspend,Thanet District Council,16/09/2014,368428,455.00,Amber Driver Training,AMB004,Director Corp Resources S151,Revenue,Employees
http://thanet.gov.uk/supplierspend,Thanet District Council,16/09/2014,368429,325.00,Amber Driver Training,AMB004,Director Corp Resources S151,Revenue,Employees
http://thanet.gov.uk/supplierspend,Thanet District Council,16/09/2014,368264,589.83,Aspli Safety Limited,ASP005,Director of Operational Services,Revenue,Premises Related Expenditure
http://thanet.gov.uk/supplierspend,Thanet District Council,16/09/2014,368264,287.98,Aspli Safety Limited,ASP005,Director of Operational Services,Revenue,Supplies and Services
http://thanet.gov.uk/supplierspend,Thanet District Council,16/09/2014,368434,605.00,Aston Walker,AST008,Director of Community Services,Revenue,Supplies and Services
http://thanet.gov.uk/supplierspend,Thanet District Council,16/09/2014,368424,7705.20,Ats Euromaster Ltd,ATS002,Director Corp Resources S151,Revenue,Transport Related Expenditure
http://thanet.gov.uk/supplierspend,Thanet District Council,16/09/2014,368830,615.20,Bpi Recycled Products,BPI002,Director Corp Resources S151,Revenue,Supplies and Services
http://thanet.gov.uk/supplierspend,Thanet District Council,16/09/2014,368830,485.50,Bpi Recycled Products,BPI002,Director of Operational Services,Revenue,Third Party Payments
http://thanet.gov.uk/supplierspend,Thanet District Council,16/09/2014,368956,325.00,Bradstowe Chartered Surveyors,BRA027,Director of Community Services,Revenue,Supplies and Services
http://thanet.gov.uk/supplierspend,Thanet District Council,16/09/2014,368966,11741.20,Bramling Construction Ltd,BRA020,Director Corp Resources S151,Balance Sheet,Long Term Assets
http://thanet.gov.uk/supplierspend,Thanet District Council,16/09/2014,368826,380.00,Broadstairs Metal Craft,BRO058,Director of Operational Services,Revenue,Premises Related Expenditure
http://thanet.gov.uk/supplierspend,Thanet District Council,16/09/2014,368940,2313.14,Canon (Uk) Ltd,CAN021,Director of Community Services,Revenue,Supplies and Services
http://thanet.gov.uk/supplierspend,Thanet District Council,16/09/2014,368332,379.67,Capt G Tully,TUL001,Director of Operational Services,Revenue,Supplies and Services
http://thanet.gov.uk/supplierspend,Thanet District Council,16/09/2014,368952,230.00,Chatterbox Ltd,CHA006,East Kent Shared Services,Revenue,Supplies and Services
http://thanet.gov.uk/supplierspend,Thanet District Council,16/09/2014,368980,1276.13,Cliffsend Parish Council,CLI015,Director of Community Services,Revenue,Supplies and Services
http://thanet.gov.uk/supplierspend,Thanet District Council,16/09/2014,368250,3550.00,Commercial Services Trading Ltd,COM048,Director of Community Services,Revenue,Employees
http://thanet.gov.uk/supplierspend,Thanet District Council,16/09/2014,367923,400.00,Connaught Hotel Dover Limited,CON046,Director of Community Services,Revenue,Supplies and Services
http://thanet.gov.uk/supplierspend,Thanet District Council,16/09/2014,368394,984.00,Daniels Healthcare Limited,DAN014,Director of Operational Services,Revenue,Third Party Payments
http://thanet.gov.uk/supplierspend,Thanet District Council,16/09/2014,368454,704.00,Disclosure And Barring Service,DIS017,Director of Community Services,Revenue,Supplies and Services
http://thanet.gov.uk/supplierspend,Thanet District Council,16/09/2014,368441,1825.00,Dr R K Chhabra,CHH001,Director of Operational Services,Revenue,Supplies and Services
http://thanet.gov.uk/supplierspend,Thanet District Council,16/09/2014,367654,213.11,E Saunders Margate Ltd,SAU001,Director of Operational Services,Revenue,Premises Related Expenditure
http://thanet.gov.uk/supplierspend,Thanet District Council,16/09/2014,368403,438.42,Ernest Doe & Sons Ltd,ERN003,Director of Operational Services,Revenue,Supplies and Services
http://thanet.gov.uk/supplierspend,Thanet District Council,16/09/2014,368415,772.00,Estuary Services Ltd,EST002,Director of Operational Services,Revenue,Transport Related Expenditure
http://thanet.gov.uk/supplierspend,Thanet District Council,16/09/2014,368969,2957.00,Evermech Services Ltd,EVE011,Director Corp Resources S151,Balance Sheet,Long Term Assets
http://thanet.gov.uk/supplierspend,Thanet District Council,16/09/2014,368965,1704.40,Family Mosaic Housing,FAM001,Director Corp Resources S151,Balance Sheet,Long Term Assets
http://thanet.gov.uk/supplierspend,Thanet District Council,16/09/2014,368967,3355.00,Family Mosaic Housing,FAM001,Director Corp Resources S151,Balance Sheet,Long Term Assets
http://thanet.gov.uk/supplierspend,Thanet District Council,16/09/2014,368971,1511.08,Family Mosaic Housing,FAM001,Director Corp Resources S151,Balance Sheet,Long Term Assets
http://thanet.gov.uk/supplierspend,Thanet District Council,16/09/2014,368972,1214.20,Family Mosaic Housing,FAM001,Director Corp Resources S151,Balance Sheet,Long Term Assets
http://thanet.gov.uk/supplierspend,Thanet District Council,16/09/2014,367153,1165.00,Four Jays Ltd,FOU007,Director of Community Services,Revenue,Supplies and Services
http://thanet.gov.uk/supplierspend,Thanet District Council,16/09/2014,367172,295.00,Four Jays Ltd,FOU007,Director of Community Services,Revenue,Supplies and Services
http://thanet.gov.uk/supplierspend,Thanet District Council,16/09/2014,367647,3000.00,Gardiner & Theobald Llp,GAR020,Director Corp Resources S151,Balance Sheet,Long Term Assets
http://thanet.gov.uk/supplierspend,Thanet District Council,16/09/2014,367648,5000.00,Gardiner & Theobald Llp,GAR020,Director Corp Resources S151,Balance Sheet,Long Term Assets
http://thanet.gov.uk/supplierspend,Thanet District Council,16/09/2014,367649,2400.00,Gardiner & Theobald Llp,GAR020,Director Corp Resources S151,Balance Sheet,Long Term Assets
http://thanet.gov.uk/supplierspend,Thanet District Council,16/09/2014,368484,625.70,Gb Sport & Leisure Uk Ltd,GBS002,Director of Operational Services,Revenue,Premises Related Expenditure
http://thanet.gov.uk/supplierspend,Thanet District Council,16/09/2014,368798,750.00,Gulliver'S Truck Hire Limited,GUL001,Director Corp Resources S151,Revenue,Transport Related Expenditure
http://thanet.gov.uk/supplierspend,Thanet District Council,16/09/2014,367826,2100.00,Gva Grimley Limited,GVA001,Director Corp Resources S151,Balance Sheet,Long Term Assets
http://thanet.gov.uk/supplierspend,Thanet District Council,16/09/2014,368958,2499.00,H M Revenue & Customs,HMR004,Director Corp Resources S151,Balance Sheet,Long Term Assets
http://thanet.gov.uk/supplierspend,Thanet District Council,16/09/2014,368343,650.00,Hi Way Services Ltd,HIW002,Director of Operational Services,Revenue,Premises Related Expenditure
http://thanet.gov.uk/supplierspend,Thanet District Council,16/09/2014,368341,215.00,Hire Station Limited,HIR001,Director of Community Services,Revenue,Supplies and Services
http://thanet.gov.uk/supplierspend,Thanet District Council,16/09/2014,368456,9551.30,Howard Holt,HOL027,Director of Operational Services,Revenue,Supplies and Services
http://thanet.gov.uk/supplierspend,Thanet District Council,16/09/2014,367424,348.00,Hydrosphere Uk Limited,HYD009,Director of Operational Services,Revenue,Premises Related Expenditure
http://thanet.gov.uk/supplierspend,Thanet District Council,16/09/2014,368333,1040.00,Idox Software  Limited,IDO001,Director of Community Services,Revenue,Supplies and Services
http://thanet.gov.uk/supplierspend,Thanet District Council,16/09/2014,368455,4750.00,James Smith(Planning Law Servcs)Ltd,SMI043,Director of Community Services,Revenue,Supplies and Services
http://thanet.gov.uk/supplierspend,Thanet District Council,16/09/2014,368453,3950.00,Jeremy Gardner Associates Limited,GAR022,Director Corp Resources S151,Balance Sheet,Long Term Assets
http://thanet.gov.uk/supplierspend,Thanet District Council,16/09/2014,368435,343.86,Jewson Ltd,JEW001,Director Corp Resources S151,Revenue,Premises Related Expenditure
http://thanet.gov.uk/supplierspend,Thanet District Council,16/09/2014,368974,864.24,John Gale,GAL001,Director Corp Resources S151,Balance Sheet,Long Term Assets
http://thanet.gov.uk/supplierspend,Thanet District Council,16/09/2014,368339,1395.00,Kenhire Limited,KEN042,Director Corp Resources S151,Revenue,Transport Related Expenditure
http://thanet.gov.uk/supplierspend,Thanet District Council,16/09/2014,368197,330.00,Kent County Council,KCC002,Director of Operational Services,Revenue,Premises Related Expenditure
http://thanet.gov.uk/supplierspend,Thanet District Council,16/09/2014,368315,2408.50,Kent County Council (Kcs),KCC003,Director of Operational Services,Revenue,Transport Related Expenditure
http://thanet.gov.uk/supplierspend,Thanet District Council,16/09/2014,368892,377.05,Kent County Council (Kcs),KCC003,Director of Community Services,Revenue,Premises Related Expenditure
http://thanet.gov.uk/supplierspend,Thanet District Council,16/09/2014,368902,322.90,Kent County Council (Kcs),KCC003,Director of Operational Services,Revenue,Premises Related Expenditure
http://thanet.gov.uk/supplierspend,Thanet District Council,16/09/2014,368904,248.46,Kent County Council (Kcs),KCC003,Director Corp Resources S151,Revenue,Premises Related Expenditure
http://thanet.gov.uk/supplierspend,Thanet District Council,16/09/2014,368905,253.31,Kent County Council (Kcs),KCC003,Director of Community Services,Revenue,Premises Related Expenditure
http://thanet.gov.uk/supplierspend,Thanet District Council,16/09/2014,367582,1332.23,Kompan Ltd,KOM001,Director of Operational Services,Revenue,Supplies and Services
http://thanet.gov.uk/supplierspend,Thanet District Council,16/09/2014,368842,2637.07,Level 3 Communications (Uk) Ltd,LEV005,Director Corp Resources S151,Balance Sheet,Current Assets
http://thanet.gov.uk/supplierspend,Thanet District Council,16/09/2014,368954,99.00,Level 3 Communications (Uk) Ltd,LEV005,East Kent Shared Services,Revenue,Supplies and Services
http://thanet.gov.uk/supplierspend,Thanet District Council,16/09/2014,368724,30979.65,Locata (Housing Services) Ltd,LOC015,Director of Community Services,Revenue,Supplies and Services
http://thanet.gov.uk/supplierspend,Thanet District Council,16/09/2014,368725,3852.00,Locata (Housing Services) Ltd,LOC015,Director of Community Services,Revenue,Supplies and Services
http://thanet.gov.uk/supplierspend,Thanet District Council,16/09/2014,368726,608.51,Locata (Housing Services) Ltd,LOC015,Director of Community Services,Revenue,Supplies and Services
http://thanet.gov.uk/supplierspend,Thanet District Council,16/09/2014,368727,276.80,Locata (Housing Services) Ltd,LOC015,Director of Community Services,Revenue,Supplies and Services
http://thanet.gov.uk/supplierspend,Thanet District Council,16/09/2014,368728,1000.00,Locata (Housing Services) Ltd,LOC015,Director of Community Services,Revenue,Supplies and Services
http://thanet.gov.uk/supplierspend,Thanet District Council,16/09/2014,368729,256.00,Locata (Housing Services) Ltd,LOC015,Director of Community Services,Revenue,Supplies and Services
http://thanet.gov.uk/supplierspend,Thanet District Council,16/09/2014,368891,325.00,Locata (Housing Services) Ltd,LOC015,Director of Community Services,Revenue,Supplies and Services
http://thanet.gov.uk/supplierspend,Thanet District Council,16/09/2014,368893,325.00,Locata (Housing Services) Ltd,LOC015,Director of Community Services,Revenue,Supplies and Services
http://thanet.gov.uk/supplierspend,Thanet District Council,16/09/2014,368897,650.00,Locata (Housing Services) Ltd,LOC015,Director of Community Services,Revenue,Supplies and Services
http://thanet.gov.uk/supplierspend,Thanet District Council,16/09/2014,368898,1300.00,Locata (Housing Services) Ltd,LOC015,Director of Community Services,Revenue,Supplies and Services
http://thanet.gov.uk/supplierspend,Thanet District Council,16/09/2014,368900,4439.00,Locata (Housing Services) Ltd,LOC015,Director of Community Services,Revenue,Supplies and Services
http://thanet.gov.uk/supplierspend,Thanet District Council,16/09/2014,368901,1300.00,Locata (Housing Services) Ltd,LOC015,Director of Community Services,Revenue,Supplies and Services
http://thanet.gov.uk/supplierspend,Thanet District Council,16/09/2014,368903,8300.00,Locata (Housing Services) Ltd,LOC015,Director of Community Services,Revenue,Supplies and Services
http://thanet.gov.uk/supplierspend,Thanet District Council,16/09/2014,368708,376.00,Lyreco Uk Limited,LYR001,Director of Community Services,Revenue,Supplies and Services
http://thanet.gov.uk/supplierspend,Thanet District Council,16/09/2014,368864,439.38,M T Coleman,COL029,Director of Operational Services,Revenue,Transport Related Expenditure
http://thanet.gov.uk/supplierspend,Thanet District Council,16/09/2014,368783,900.00,Maudsley Charity,MAU003,Director of Operational Services,Revenue,Premises Related Expenditure
http://thanet.gov.uk/supplierspend,Thanet District Council,16/09/2014,368202,38664.07,Mears Ltd,MEA003,Director Corp Resources S151,Balance Sheet,Current Assets
http://thanet.gov.uk/supplierspend,Thanet District Council,16/09/2014,368203,5785.84,Mears Ltd,MEA003,Director Corp Resources S151,Balance Sheet,Current Assets
http://thanet.gov.uk/supplierspend,Thanet District Council,16/09/2014,368204,1305.52,Mears Ltd,MEA003,Director Corp Resources S151,Balance Sheet,Current Assets
http://thanet.gov.uk/supplierspend,Thanet District Council,16/09/2014,368205,613.25,Mears Ltd,MEA003,Director Corp Resources S151,Balance Sheet,Current Assets
http://thanet.gov.uk/supplierspend,Thanet District Council,16/09/2014,368206,227.39,Mears Ltd,MEA003,Director Corp Resources S151,Balance Sheet,Current Assets
http://thanet.gov.uk/supplierspend,Thanet District Council,16/09/2014,368207,19933.35,Mears Ltd,MEA003,Director Corp Resources S151,Balance Sheet,Current Assets
http://thanet.gov.uk/supplierspend,Thanet District Council,16/09/2014,368407,36500.27,Mears Ltd,MEA003,Director Corp Resources S151,Balance Sheet,Current Assets
http://thanet.gov.uk/supplierspend,Thanet District Council,16/09/2014,368408,25831.78,Mears Ltd,MEA003,Director Corp Resources S151,Balance Sheet,Current Assets
http://thanet.gov.uk/supplierspend,Thanet District Council,16/09/2014,368342,6820.81,Med Clean South Ltd,MED015,Director of Operational Services,Revenue,Premises Related Expenditure
http://thanet.gov.uk/supplierspend,Thanet District Council,16/09/2014,368414,628.26,Metric Group Ltd,MET001,Director of Operational Services,Revenue,Supplies and Services
http://thanet.gov.uk/supplierspend,Thanet District Council,16/09/2014,368439,51077.31,Molyneux Rose Ltd Cl Acc-I/S M'Gate,MOL002,Director of Operational Services,Revenue,Premises Related Expenditure
http://thanet.gov.uk/supplierspend,Thanet District Council,16/09/2014,368426,42559.75,Molyneux Rose Ltd Cl Acc-I/S R'Gate,MOL003,Director of Operational Services,Revenue,Premises Related Expenditure
http://thanet.gov.uk/supplierspend,Thanet District Council,16/09/2014,368447,502.28,Morgan Jones Ltd,MOR001,Director Corp Resources S151,Revenue,Employees
http://thanet.gov.uk/supplierspend,Thanet District Council,16/09/2014,368943,640.84,Morgan Jones Ltd,MOR001,Director Corp Resources S151,Revenue,Employees
http://thanet.gov.uk/supplierspend,Thanet District Council,16/09/2014,368483,635.83,Mr Darren Osborne,OSB008,Director of Community Services,Revenue,Premises Related Expenditure
http://thanet.gov.uk/supplierspend,Thanet District Council,16/09/2014,368483,38.33,Mr Darren Osborne,OSB008,Director of Operational Services,Revenue,Premises Related Expenditure
http://thanet.gov.uk/supplierspend,Thanet District Council,16/09/2014,368255,3862.00,New Approach Contractors Ltd,NEW037,Director of Operational Services,Revenue,Premises Related Expenditure
http://thanet.gov.uk/supplierspend,Thanet District Council,16/09/2014,368425,30005.00,Northgate Inf Solutions Uk Ltd,NOR018,East Kent Shared Services,Revenue,Supplies and Services
http://thanet.gov.uk/supplierspend,Thanet District Council,16/09/2014,368953,19950.00,Northgate Inf Solutions Uk Ltd,NOR018,East Kent Shared Services,Revenue,Supplies and Services
http://thanet.gov.uk/supplierspend,Thanet District Council,16/09/2014,368973,7202.00,Northwood Builders,NOR002,Director Corp Resources S151,Balance Sheet,Long Term Assets
http://thanet.gov.uk/supplierspend,Thanet District Council,16/09/2014,368772,317.56,Npower Limited,NPO001,Director of Community Services,Revenue,Premises Related Expenditure
http://thanet.gov.uk/supplierspend,Thanet District Council,16/09/2014,367483,500.00,Ovenden Allworks Limited,OVE008,Director of Operational Services,Revenue,Premises Related Expenditure
http://thanet.gov.uk/supplierspend,Thanet District Council,16/09/2014,367484,4685.00,Ovenden Allworks Limited,OVE008,Director of Operational Services,Revenue,Premises Related Expenditure
http://thanet.gov.uk/supplierspend,Thanet District Council,16/09/2014,368962,825.00,P A Rental Limited,PAR069,Director of Community Services,Revenue,Supplies and Services
http://thanet.gov.uk/supplierspend,Thanet District Council,16/09/2014,368979,525.00,P A Rental Limited,PAR069,Director Corp Resources S151,Balance Sheet,Long Term Assets
http://thanet.gov.uk/supplierspend,Thanet District Council,16/09/2014,367031,2313.95,Parkeon Limited,PAR063,Director of Operational Services,Revenue,Supplies and Services
http://thanet.gov.uk/supplierspend,Thanet District Council,16/09/2014,367164,2343.06,Parkeon Limited,PAR063,Director of Operational Services,Revenue,Supplies and Services
http://thanet.gov.uk/supplierspend,Thanet District Council,16/09/2014,368092,360.00,Parkeon Limited,PAR063,Director of Operational Services,Revenue,Supplies and Services
http://thanet.gov.uk/supplierspend,Thanet District Council,16/09/2014,368983,20236.67,Pinsent Masons,PIN007,Director Corp Resources S151,Revenue,Supplies and Services
http://thanet.gov.uk/supplierspend,Thanet District Council,16/09/2014,368968,8277.00,Precept Cs Ltd,PRE032,Director Corp Resources S151,Balance Sheet,Long Term Assets
http://thanet.gov.uk/supplierspend,Thanet District Council,16/09/2014,368452,376.40,Profile Security Services Limited,PRO018,Director Corp Resources S151,Balance Sheet,Current Assets
http://thanet.gov.uk/supplierspend,Thanet District Council,16/09/2014,368785,1883.11,Project Motorhouse Ltd,PRO031,Director of Community Services,Revenue,Premises Related Expenditure
http://thanet.gov.uk/supplierspend,Thanet District Council,16/09/2014,368785,1883.10,Project Motorhouse Ltd,PRO031,Director of Operational Services,Revenue,Premises Related Expenditure
http://thanet.gov.uk/supplierspend,Thanet District Council,16/09/2014,368448,595.00,R Cannon,CAN007,Director of Operational Services,Revenue,Supplies and Services
http://thanet.gov.uk/supplierspend,Thanet District Council,16/09/2014,368413,1910.24,Realvnc Ltd,REA007,East Kent Shared Services,Revenue,Supplies and Services
http://thanet.gov.uk/supplierspend,Thanet District Council,16/09/2014,368981,1500.00,Red Snapper Learning Ltd,RED019,Director of Community Services,Revenue,Supplies and Services
http://thanet.gov.uk/supplierspend,Thanet District Council,16/09/2014,367900,4689.84,Richard Turney,TUR026,Director Corp Resources S151,Revenue,Supplies and Services
http://thanet.gov.uk/supplierspend,Thanet District Council,16/09/2014,368788,2436.00,Riverside Truck Rental Limited,RIV005,Director Corp Resources S151,Revenue,Transport Related Expenditure
http://thanet.gov.uk/supplierspend,Thanet District Council,16/09/2014,368977,500.00,Rotary Club Of Broadstairs Trust Fnd,ROT004,Director of Community Services,Revenue,Supplies and Services
http://thanet.gov.uk/supplierspend,Thanet District Council,16/09/2014,368270,1574.73,Royal Mail,ROY004,Director Corp Resources S151,Revenue,Supplies and Services
http://thanet.gov.uk/supplierspend,Thanet District Council,16/09/2014,368811,237.64,Sba Ltd,SBA001,Director Corp Resources S151,Revenue,Supplies and Services
http://thanet.gov.uk/supplierspend,Thanet District Council,16/09/2014,368812,429.42,Sba Ltd,SBA001,Director Corp Resources S151,Revenue,Supplies and Services
http://thanet.gov.uk/supplierspend,Thanet District Council,16/09/2014,367418,17467.00,Secom Plc,SEC017,Director of Operational Services,Revenue,Supplies and Services
http://thanet.gov.uk/supplierspend,Thanet District Council,16/09/2014,368710,1935.99,Sellick Partnership Group Ltd,SEL011,Director Corp Resources S151,Revenue,Supplies and Services
http://thanet.gov.uk/supplierspend,Thanet District Council,16/09/2014,368739,528.00,Sellick Partnership Group Ltd,SEL011,Director of Community Services,Revenue,Supplies and Services
http://thanet.gov.uk/supplierspend,Thanet District Council,16/09/2014,368923,1549.60,Siteimprove Ltd,SIT006,Director Corp Resources S151,Revenue,Supplies and Services
http://thanet.gov.uk/supplierspend,Thanet District Council,16/09/2014,368227,1050.00,Sjr Pm Solutions Limited,SJR001,East Kent Shared Services,Revenue,Supplies and Services
http://thanet.gov.uk/supplierspend,Thanet District Council,16/09/2014,368803,297.50,South East Netting Limited,SOU016,Director of Operational Services,Revenue,Premises Related Expenditure
http://thanet.gov.uk/supplierspend,Thanet District Council,16/09/2014,368970,10085.00,South East Wetrooms Limited,SEW002,Director Corp Resources S151,Balance Sheet,Long Term Assets
http://thanet.gov.uk/supplierspend,Thanet District Council,16/09/2014,367458,529.34,Southern Electric,SEL007,Director of Community Services,Revenue,Premises Related Expenditure
http://thanet.gov.uk/supplierspend,Thanet District Council,16/09/2014,368068,5725.47,Southern Electric,SEL007,Director of Operational Services,Revenue,Premises Related Expenditure
http://thanet.gov.uk/supplierspend,Thanet District Council,16/09/2014,368419,4271.87,Southern Electric,SEL007,Director of Community Services,Revenue,Premises Related Expenditure
http://thanet.gov.uk/supplierspend,Thanet District Council,16/09/2014,368420,-529.34,Southern Electric,SEL007,Director of Community Services,Revenue,Premises Related Expenditure
http://thanet.gov.uk/supplierspend,Thanet District Council,16/09/2014,368517,603.96,Southern Electric,SEL007,Director of Community Services,Revenue,Premises Related Expenditure
http://thanet.gov.uk/supplierspend,Thanet District Council,16/09/2014,368526,1194.21,Southern Electric,SEL007,Director of Community Services,Revenue,Premises Related Expenditure
http://thanet.gov.uk/supplierspend,Thanet District Council,16/09/2014,368527,355.98,Southern Electric,SEL007,Director of Community Services,Revenue,Premises Related Expenditure
http://thanet.gov.uk/supplierspend,Thanet District Council,16/09/2014,368528,1480.54,Southern Electric,SEL007,Director of Community Services,Revenue,Premises Related Expenditure
http://thanet.gov.uk/supplierspend,Thanet District Council,16/09/2014,368529,2446.37,Southern Electric,SEL007,Director of Operational Services,Revenue,Premises Related Expenditure
http://thanet.gov.uk/supplierspend,Thanet District Council,16/09/2014,368555,211.05,Southern Electric,SEL007,Director of Operational Services,Revenue,Premises Related Expenditure
http://thanet.gov.uk/supplierspend,Thanet District Council,16/09/2014,368560,281.82,Southern Electric,SEL007,Director of Operational Services,Revenue,Premises Related Expenditure
http://thanet.gov.uk/supplierspend,Thanet District Council,16/09/2014,368561,230.07,Southern Electric,SEL007,Director of Operational Services,Revenue,Premises Related Expenditure
http://thanet.gov.uk/supplierspend,Thanet District Council,16/09/2014,368567,19.81,Southern Electric,SEL007,Director of Community Services,Revenue,Premises Related Expenditure
http://thanet.gov.uk/supplierspend,Thanet District Council,16/09/2014,368567,491.81,Southern Electric,SEL007,Director of Operational Services,Revenue,Premises Related Expenditure
http://thanet.gov.uk/supplierspend,Thanet District Council,16/09/2014,368575,-268.29,Southern Electric,SEL007,Director of Operational Services,Revenue,Premises Related Expenditure
http://thanet.gov.uk/supplierspend,Thanet District Council,16/09/2014,368584,645.21,Southern Electric,SEL007,Director of Community Services,Revenue,Premises Related Expenditure
http://thanet.gov.uk/supplierspend,Thanet District Council,16/09/2014,368590,4567.20,Southern Electric,SEL007,Director of Community Services,Revenue,Premises Related Expenditure
http://thanet.gov.uk/supplierspend,Thanet District Council,16/09/2014,368840,-603.96,Southern Electric,SEL007,Director of Community Services,Revenue,Premises Related Expenditure
http://thanet.gov.uk/supplierspend,Thanet District Council,16/09/2014,368843,318.65,Southern Electric,SEL007,Director of Community Services,Revenue,Premises Related Expenditure
http://thanet.gov.uk/supplierspend,Thanet District Council,16/09/2014,368845,2212.82,Southern Electric,SEL007,Director of Community Services,Revenue,Premises Related Expenditure
http://thanet.gov.uk/supplierspend,Thanet District Council,16/09/2014,368853,2437.93,Southern Electric,SEL007,Director of Community Services,Revenue,Premises Related Expenditure
http://thanet.gov.uk/supplierspend,Thanet District Council,16/09/2014,368771,522.03,Southern Water,SWA001,Director of Operational Services,Revenue,Premises Related Expenditure
http://thanet.gov.uk/supplierspend,Thanet District Council,16/09/2014,368445,558.72,Swale Shutter & Door Services Ltd,SWA013,Director of Operational Services,Revenue,Supplies and Services
http://thanet.gov.uk/supplierspend,Thanet District Council,16/09/2014,368721,645.00,Tennants Distribution Limited,TEN005,Director Corp Resources S151,Revenue,Transport Related Expenditure
http://thanet.gov.uk/supplierspend,Thanet District Council,16/09/2014,368236,1862.49,The Glenwood Hotel,GLE007,Director of Community Services,Revenue,Supplies and Services
http://thanet.gov.uk/supplierspend,Thanet District Council,16/09/2014,368737,227.35,The Paper Company Limited,PAP003,Director of Community Services,Revenue,Supplies and Services
http://thanet.gov.uk/supplierspend,Thanet District Council,16/09/2014,368978,13000.00,The Pipeline,PIP002,Director of Community Services,Revenue,Premises Related Expenditure
http://thanet.gov.uk/supplierspend,Thanet District Council,16/09/2014,368976,300.00,The Ragroof Players Cic,RAG001,Director of Community Services,Revenue,Supplies and Services
http://thanet.gov.uk/supplierspend,Thanet District Council,16/09/2014,367642,615.00,Turner Contemporary Enterprises Ltd,TUR022,Director of Operational Services,Revenue,Premises Related Expenditure
http://thanet.gov.uk/supplierspend,Thanet District Council,16/09/2014,368817,220.00,W Brazil & Bros,BRA001,Director of Operational Services,Revenue,Premises Related Expenditure
http://thanet.gov.uk/supplierspend,Thanet District Council,16/09/2014,368975,4000.00,Westcoast Kent Cic,WES049,Director of Community Services,Revenue,Supplies and Services
http://thanet.gov.uk/supplierspend,Thanet District Council,16/09/2014,368430,332.00,Xma Ltd,XMA001,East Kent Shared Services,Revenue,Supplies and Services
http://thanet.gov.uk/supplierspend,Thanet District Council,18/09/2014,369304,258304.00,Kent & Medway Towns Fire Authority,KMT001,Director Corp Resources S151,Balance Sheet,Reserves
http://thanet.gov.uk/supplierspend,Thanet District Council,18/09/2014,369305,3812183.00,Kent County Council,KCC022,Director Corp Resources S151,Balance Sheet,Reserves
http://thanet.gov.uk/supplierspend,Thanet District Council,18/09/2014,369303,482313.50,Kent Police & Crime Commissioner,KPA003,Director Corp Resources S151,Balance Sheet,Reserves
http://thanet.gov.uk/supplierspend,Thanet District Council,19/09/2014,N/A,301.58,REDACTED PERSONAL DATA,N/A,Director of Operational Services,Revenue,Transport Related Expenditure
http://thanet.gov.uk/supplierspend,Thanet District Council,19/09/2014,N/A,137.10,REDACTED PERSONAL DATA,N/A,East Kent Shared Services,Revenue,Supplies and Services
http://thanet.gov.uk/supplierspend,Thanet District Council,19/09/2014,N/A,124.03,REDACTED PERSONAL DATA,N/A,East Kent Shared Services,Revenue,Transport Related Expenditure
http://thanet.gov.uk/supplierspend,Thanet District Council,19/09/2014,N/A,426.63,REDACTED PERSONAL DATA,N/A,East Kent Shared Services,Revenue,Transport Related Expenditure
http://thanet.gov.uk/supplierspend,Thanet District Council,19/09/2014,N/A,281.73,REDACTED PERSONAL DATA,N/A,Director of Community Services,Revenue,Transport Related Expenditure
http://thanet.gov.uk/supplierspend,Thanet District Council,19/09/2014,N/A,258.09,REDACTED PERSONAL DATA,N/A,East Kent Shared Services,Revenue,Transport Related Expenditure
http://thanet.gov.uk/supplierspend,Thanet District Council,19/09/2014,N/A,370.60,REDACTED PERSONAL DATA,N/A,Director of Community Services,Revenue,Transport Related Expenditure
http://thanet.gov.uk/supplierspend,Thanet District Council,19/09/2014,N/A,365.87,REDACTED PERSONAL DATA,N/A,Director of Operational Services,Revenue,Transport Related Expenditure
http://thanet.gov.uk/supplierspend,Thanet District Council,19/09/2014,N/A,280.79,REDACTED PERSONAL DATA,N/A,Director of Community Services,Revenue,Transport Related Expenditure
http://thanet.gov.uk/supplierspend,Thanet District Council,19/09/2014,N/A,340.34,REDACTED PERSONAL DATA,N/A,Director of Operational Services,Revenue,Transport Related Expenditure
http://thanet.gov.uk/supplierspend,Thanet District Council,19/09/2014,N/A,254.31,REDACTED PERSONAL DATA,N/A,Director of Community Services,Revenue,Transport Related Expenditure
http://thanet.gov.uk/supplierspend,Thanet District Council,19/09/2014,N/A,267.55,REDACTED PERSONAL DATA,N/A,Director of Operational Services,Revenue,Transport Related Expenditure
http://thanet.gov.uk/supplierspend,Thanet District Council,19/09/2014,N/A,279.84,REDACTED PERSONAL DATA,N/A,Director of Community Services,Revenue,Transport Related Expenditure
http://thanet.gov.uk/supplierspend,Thanet District Council,19/09/2014,N/A,319.55,REDACTED PERSONAL DATA,N/A,East Kent Shared Services,Revenue,Transport Related Expenditure
http://thanet.gov.uk/supplierspend,Thanet District Council,19/09/2014,N/A,270.39,REDACTED PERSONAL DATA,N/A,Director of Community Services,Revenue,Transport Related Expenditure
http://thanet.gov.uk/supplierspend,Thanet District Council,19/09/2014,N/A,262.82,REDACTED PERSONAL DATA,N/A,Director of Operational Services,Revenue,Transport Related Expenditure
http://thanet.gov.uk/supplierspend,Thanet District Council,19/09/2014,N/A,371.54,REDACTED PERSONAL DATA,N/A,East Kent Shared Services,Revenue,Transport Related Expenditure
http://thanet.gov.uk/supplierspend,Thanet District Council,19/09/2014,N/A,303.47,REDACTED PERSONAL DATA,N/A,East Kent Shared Services,Revenue,Transport Related Expenditure
http://thanet.gov.uk/supplierspend,Thanet District Council,19/09/2014,N/A,284.57,REDACTED PERSONAL DATA,N/A,East Kent Shared Services,Revenue,Transport Related Expenditure
http://thanet.gov.uk/supplierspend,Thanet District Council,19/09/2014,369337,-6999.76,Waste Consulting Llp,WAS005,Director of Operational Services,Revenue,Supplies and Services
http://thanet.gov.uk/supplierspend,Thanet District Council,19/09/2014,369338,6627.73,Waste Consulting Llp,WAS005,Director of Operational Services,Revenue,Supplies and Services
http://thanet.gov.uk/supplierspend,Thanet District Council,23/09/2014,368938,534.00,Acf Secretarial,ACF001,Director Corp Resources S151,Revenue,Supplies and Services
http://thanet.gov.uk/supplierspend,Thanet District Council,23/09/2014,369425,2070.50,Acol Parish Council,ACO001,Director Corp Resources S151,Balance Sheet,Reserves
http://thanet.gov.uk/supplierspend,Thanet District Council,23/09/2014,369425,416.11,Acol Parish Council,ACO001,Director of Operational Services,Revenue,Third Party Payments
http://thanet.gov.uk/supplierspend,Thanet District Council,23/09/2014,368789,1041.21,Adecco Uk Ltd,ADE005,Chief Executive,Revenue,Employees
http://thanet.gov.uk/supplierspend,Thanet District Council,23/09/2014,368865,792.67,Adecco Uk Ltd,ADE005,Chief Executive,Revenue,Employees
http://thanet.gov.uk/supplierspend,Thanet District Council,23/09/2014,368457,670.00,All Sign Solutions Ltd,ALL002,Director of Community Services,Revenue,Supplies and Services
http://thanet.gov.uk/supplierspend,Thanet District Council,23/09/2014,368459,300.00,All Sign Solutions Ltd,ALL002,Director of Community Services,Revenue,Premises Related Expenditure
http://thanet.gov.uk/supplierspend,Thanet District Council,23/09/2014,368460,1445.00,All Sign Solutions Ltd,ALL002,Director of Community Services,Revenue,Supplies and Services
http://thanet.gov.uk/supplierspend,Thanet District Council,23/09/2014,368462,300.00,All Sign Solutions Ltd,ALL002,Director of Community Services,Revenue,Premises Related Expenditure
http://thanet.gov.uk/supplierspend,Thanet District Council,23/09/2014,368464,520.00,All Sign Solutions Ltd,ALL002,Director of Community Services,Revenue,Supplies and Services
http://thanet.gov.uk/supplierspend,Thanet District Council,23/09/2014,368470,435.00,All Sign Solutions Ltd,ALL002,Director of Operational Services,Revenue,Premises Related Expenditure
http://thanet.gov.uk/supplierspend,Thanet District Council,23/09/2014,369420,93.77,Allstar Business Solutions Ltd,ALL038,Director Corp Resources S151,Revenue,Transport Related Expenditure
http://thanet.gov.uk/supplierspend,Thanet District Council,23/09/2014,369420,238.45,Allstar Business Solutions Ltd,ALL038,Director of Operational Services,Revenue,Transport Related Expenditure
http://thanet.gov.uk/supplierspend,Thanet District Council,23/09/2014,368226,1170.00,Andy Morris,MOR028,Director of Community Services,Revenue,Supplies and Services
http://thanet.gov.uk/supplierspend,Thanet District Council,23/09/2014,369259,559.95,Ate (Uk) Limited,ANG014,Director Corp Resources S151,Revenue,Transport Related Expenditure
http://thanet.gov.uk/supplierspend,Thanet District Council,23/09/2014,369426,19215.00,Birchington Parish Council,BIR001,Director Corp Resources S151,Balance Sheet,Reserves
http://thanet.gov.uk/supplierspend,Thanet District Council,23/09/2014,369426,2202.07,Birchington Parish Council,BIR001,Director of Operational Services,Revenue,Third Party Payments
http://thanet.gov.uk/supplierspend,Thanet District Council,23/09/2014,369486,325.00,Bradstowe Chartered Surveyors,BRA027,Director of Community Services,Revenue,Supplies and Services
http://thanet.gov.uk/supplierspend,Thanet District Council,23/09/2014,368862,250.00,Bridge Security Cctv Ltd,BRI039,Director of Operational Services,Revenue,Supplies and Services
http://thanet.gov.uk/supplierspend,Thanet District Council,23/09/2014,368878,1610.40,Bridge Security Cctv Ltd,BRI039,Director of Community Services,Revenue,Supplies and Services
http://thanet.gov.uk/supplierspend,Thanet District Council,23/09/2014,368879,700.00,Bridge Security Cctv Ltd,BRI039,Director of Operational Services,Revenue,Supplies and Services
http://thanet.gov.uk/supplierspend,Thanet District Council,23/09/2014,369427,132607.00,Broadstairs & St Peters Town Council,BRO005,Director Corp Resources S151,Balance Sheet,Reserves
http://thanet.gov.uk/supplierspend,Thanet District Council,23/09/2014,369427,12826.06,Broadstairs & St Peters Town Council,BRO005,Director of Operational Services,Revenue,Third Party Payments
http://thanet.gov.uk/supplierspend,Thanet District Council,23/09/2014,369233,9922.00,Clear Picture Services Limited,CLE015,Director Corp Resources S151,Balance Sheet,Current Assets
http://thanet.gov.uk/supplierspend,Thanet District Council,23/09/2014,369262,7500.00,Clear Picture Services Limited,CLE015,Director Corp Resources S151,Balance Sheet,Current Assets
http://thanet.gov.uk/supplierspend,Thanet District Council,23/09/2014,369423,6989.50,Cliffsend Parish Council,CLI015,Director Corp Resources S151,Balance Sheet,Reserves
http://thanet.gov.uk/supplierspend,Thanet District Council,23/09/2014,369423,498.46,Cliffsend Parish Council,CLI015,Director of Operational Services,Revenue,Third Party Payments
http://thanet.gov.uk/supplierspend,Thanet District Council,23/09/2014,368787,310.08,Cobalt Telephone Technologies Ltd,COB002,Director of Operational Services,Revenue,Supplies and Services
http://thanet.gov.uk/supplierspend,Thanet District Council,23/09/2014,368823,1310.00,Cobalt Telephone Technologies Ltd,COB002,Director of Operational Services,Revenue,Supplies and Services
http://thanet.gov.uk/supplierspend,Thanet District Council,23/09/2014,369415,3900.00,Connoisseur Renovations,CON037,Director Corp Resources S151,Balance Sheet,Long Term Assets
http://thanet.gov.uk/supplierspend,Thanet District Council,23/09/2014,369288,243.37,D & S Supplies,DSS002,Director Corp Resources S151,Revenue,Transport Related Expenditure
http://thanet.gov.uk/supplierspend,Thanet District Council,23/09/2014,368825,900.00,Dmc Design & Print Ltd,DMC001,Director of Community Services,Revenue,Supplies and Services
http://thanet.gov.uk/supplierspend,Thanet District Council,23/09/2014,368736,250000.00,Dover District Council,DOV001,East Kent Shared Services,Revenue,Supplies and Services
http://thanet.gov.uk/supplierspend,Thanet District Council,23/09/2014,368828,23706.71,Dover District Council,DOV001,East Kent Shared Services,Revenue,Supplies and Services
http://thanet.gov.uk/supplierspend,Thanet District Council,23/09/2014,369432,399.00,Downfast Demolition & Salvage Ltd,DOW001,Director Corp Resources S151,Balance Sheet,Current Assets
http://thanet.gov.uk/supplierspend,Thanet District Council,23/09/2014,369007,631.00,E Saunders Margate Ltd,SAU001,Director Corp Resources S151,Balance Sheet,Current Assets
http://thanet.gov.uk/supplierspend,Thanet District Council,23/09/2014,368999,891.04,Envirovent Ltd,ENV017,Director Corp Resources S151,Balance Sheet,Current Assets
http://thanet.gov.uk/supplierspend,Thanet District Council,23/09/2014,368711,469.90,Evergreen Landscaping Gardening Ltd,EVE004,Director of Community Services,Revenue,Premises Related Expenditure
http://thanet.gov.uk/supplierspend,Thanet District Council,23/09/2014,369416,2440.00,Evermech Services Ltd,EVE011,Director Corp Resources S151,Balance Sheet,Long Term Assets
http://thanet.gov.uk/supplierspend,Thanet District Council,23/09/2014,369408,855.60,Family Mosaic Housing,FAM001,Director Corp Resources S151,Balance Sheet,Long Term Assets
http://thanet.gov.uk/supplierspend,Thanet District Council,23/09/2014,369412,805.60,Family Mosaic Housing,FAM001,Director Corp Resources S151,Balance Sheet,Long Term Assets
http://thanet.gov.uk/supplierspend,Thanet District Council,23/09/2014,369413,776.80,Family Mosaic Housing,FAM001,Director Corp Resources S151,Balance Sheet,Long Term Assets
http://thanet.gov.uk/supplierspend,Thanet District Council,23/09/2014,369414,394.00,Family Mosaic Housing,FAM001,Director Corp Resources S151,Balance Sheet,Long Term Assets
http://thanet.gov.uk/supplierspend,Thanet District Council,23/09/2014,368740,1395.00,Florence Court Hotel,FLO003,Director of Community Services,Revenue,Supplies and Services
http://thanet.gov.uk/supplierspend,Thanet District Council,23/09/2014,368741,1440.00,Florence Court Hotel,FLO003,Director of Community Services,Revenue,Supplies and Services
http://thanet.gov.uk/supplierspend,Thanet District Council,23/09/2014,368743,750.00,Florence Court Hotel,FLO003,Director of Community Services,Revenue,Supplies and Services
http://thanet.gov.uk/supplierspend,Thanet District Council,23/09/2014,368744,630.00,Florence Court Hotel,FLO003,Director of Community Services,Revenue,Supplies and Services
http://thanet.gov.uk/supplierspend,Thanet District Council,23/09/2014,368745,400.00,Florence Court Hotel,FLO003,Director of Community Services,Revenue,Supplies and Services
http://thanet.gov.uk/supplierspend,Thanet District Council,23/09/2014,368746,1050.00,Florence Court Hotel,FLO003,Director of Community Services,Revenue,Supplies and Services
http://thanet.gov.uk/supplierspend,Thanet District Council,23/09/2014,368747,930.00,Florence Court Hotel,FLO003,Director of Community Services,Revenue,Supplies and Services
http://thanet.gov.uk/supplierspend,Thanet District Council,23/09/2014,368748,330.00,Florence Court Hotel,FLO003,Director of Community Services,Revenue,Supplies and Services
http://thanet.gov.uk/supplierspend,Thanet District Council,23/09/2014,368749,930.00,Florence Court Hotel,FLO003,Director of Community Services,Revenue,Supplies and Services
http://thanet.gov.uk/supplierspend,Thanet District Council,23/09/2014,368750,495.00,Florence Court Hotel,FLO003,Director of Community Services,Revenue,Supplies and Services
http://thanet.gov.uk/supplierspend,Thanet District Council,23/09/2014,368751,930.00,Florence Court Hotel,FLO003,Director of Community Services,Revenue,Supplies and Services
http://thanet.gov.uk/supplierspend,Thanet District Council,23/09/2014,368752,930.00,Florence Court Hotel,FLO003,Director of Community Services,Revenue,Supplies and Services
http://thanet.gov.uk/supplierspend,Thanet District Council,23/09/2014,368753,930.00,Florence Court Hotel,FLO003,Director of Community Services,Revenue,Supplies and Services
http://thanet.gov.uk/supplierspend,Thanet District Council,23/09/2014,368754,945.00,Florence Court Hotel,FLO003,Director of Community Services,Revenue,Supplies and Services
http://thanet.gov.uk/supplierspend,Thanet District Council,23/09/2014,368755,1050.00,Florence Court Hotel,FLO003,Director of Community Services,Revenue,Supplies and Services
http://thanet.gov.uk/supplierspend,Thanet District Council,23/09/2014,368928,907.00,Freight Transport Association,FRE007,Director Corp Resources S151,Revenue,Supplies and Services
http://thanet.gov.uk/supplierspend,Thanet District Council,23/09/2014,369273,508.20,Freight Transport Association,FRE007,Director Corp Resources S151,Revenue,Supplies and Services
http://thanet.gov.uk/supplierspend,Thanet District Council,23/09/2014,368886,674.15,Fuel Sure,FUE002,Director Corp Resources S151,Revenue,Supplies and Services
http://thanet.gov.uk/supplierspend,Thanet District Council,23/09/2014,368713,718.00,Gerlack & Thorne Ltd,GER001,Director of Community Services,Revenue,Premises Related Expenditure
http://thanet.gov.uk/supplierspend,Thanet District Council,23/09/2014,368714,388.00,Gerlack & Thorne Ltd,GER001,Director of Community Services,Revenue,Premises Related Expenditure
http://thanet.gov.uk/supplierspend,Thanet District Council,23/09/2014,368716,1562.00,Gerlack & Thorne Ltd,GER001,Director of Community Services,Revenue,Premises Related Expenditure
http://thanet.gov.uk/supplierspend,Thanet District Council,23/09/2014,368908,750.00,Gulliver'S Truck Hire Limited,GUL001,Director Corp Resources S151,Revenue,Transport Related Expenditure
http://thanet.gov.uk/supplierspend,Thanet District Council,23/09/2014,369407,8400.00,H M Revenue & Customs,HMR004,Director Corp Resources S151,Balance Sheet,Long Term Assets
http://thanet.gov.uk/supplierspend,Thanet District Council,23/09/2014,369237,397.00,Haynes Of Maidstone Ltd,HAY008,Director Corp Resources S151,Revenue,Transport Related Expenditure
http://thanet.gov.uk/supplierspend,Thanet District Council,23/09/2014,369238,267.50,Haynes Of Maidstone Ltd,HAY008,Director Corp Resources S151,Revenue,Transport Related Expenditure
http://thanet.gov.uk/supplierspend,Thanet District Council,23/09/2014,368868,1300.00,Hi Way Services Ltd,HIW002,Director of Operational Services,Revenue,Premises Related Expenditure
http://thanet.gov.uk/supplierspend,Thanet District Council,23/09/2014,368941,1043.95,Hi Way Services Ltd,HIW002,Director of Operational Services,Revenue,Premises Related Expenditure
http://thanet.gov.uk/supplierspend,Thanet District Council,23/09/2014,368914,2446.66,Holbrook Revell Electrical Ltd,HOL015,Director of Operational Services,Revenue,Premises Related Expenditure
http://thanet.gov.uk/supplierspend,Thanet District Council,23/09/2014,368914,5552.49,Holbrook Revell Electrical Ltd,HOL015,Director of Operational Services,Revenue,Supplies and Services
http://thanet.gov.uk/supplierspend,Thanet District Council,23/09/2014,368831,57358.00,Homes & Communities Agency,HOM013,Director Corp Resources S151,Balance Sheet,Current Liabilities
http://thanet.gov.uk/supplierspend,Thanet District Council,23/09/2014,369205,591.90,Insight Direct (Uk) Ltd,INS013,East Kent Shared Services,Revenue,Supplies and Services
http://thanet.gov.uk/supplierspend,Thanet District Council,23/09/2014,368404,4063.09,J Rospo Building Contractors,ROS001,Director of Community Services,Revenue,Premises Related Expenditure
http://thanet.gov.uk/supplierspend,Thanet District Council,23/09/2014,368521,285.00,Jik Software Ltd,JIK001,Director of Operational Services,Revenue,Employees
http://thanet.gov.uk/supplierspend,Thanet District Council,23/09/2014,368860,644.00,John Reeve (Plant Hire) Ltd,REE013,Director of Operational Services,Revenue,Transport Related Expenditure
http://thanet.gov.uk/supplierspend,Thanet District Council,23/09/2014,368916,560.00,Kendall Cars Ltd,KEN041,Director Corp Resources S151,Revenue,Transport Related Expenditure
http://thanet.gov.uk/supplierspend,Thanet District Council,23/09/2014,368917,560.00,Kendall Cars Ltd,KEN041,Director Corp Resources S151,Revenue,Transport Related Expenditure
http://thanet.gov.uk/supplierspend,Thanet District Council,23/09/2014,369285,495.00,Kenhire Limited,KEN042,Director Corp Resources S151,Revenue,Transport Related Expenditure
http://thanet.gov.uk/supplierspend,Thanet District Council,23/09/2014,368449,1125.00,Kent County Council,KCC002,East Kent Shared Services,Revenue,Employees
http://thanet.gov.uk/supplierspend,Thanet District Council,23/09/2014,368254,245.81,Kent County Council (Kcs),KCC003,Director of Community Services,Revenue,Supplies and Services
http://thanet.gov.uk/supplierspend,Thanet District Council,23/09/2014,368888,2835.78,Kent County Council (Kcs),KCC003,Director of Community Services,Revenue,Premises Related Expenditure
http://thanet.gov.uk/supplierspend,Thanet District Council,23/09/2014,369282,265.76,Kent County Council (Kcs),KCC003,Director of Community Services,Revenue,Premises Related Expenditure
http://thanet.gov.uk/supplierspend,Thanet District Council,23/09/2014,369197,300.00,Km Media Group Limited,KMM001,Director of Community Services,Revenue,Supplies and Services
http://thanet.gov.uk/supplierspend,Thanet District Council,23/09/2014,368942,1395.10,Ling Metals Limited,LIN004,Director of Operational Services,Revenue,Premises Related Expenditure
http://thanet.gov.uk/supplierspend,Thanet District Council,23/09/2014,369428,7996.00,Manston Parish Council,MAN001,Director Corp Resources S151,Balance Sheet,Reserves
http://thanet.gov.uk/supplierspend,Thanet District Council,23/09/2014,369428,1797.50,Manston Parish Council,MAN001,Director of Operational Services,Revenue,Third Party Payments
http://thanet.gov.uk/supplierspend,Thanet District Council,23/09/2014,369422,43792.50,Margate Charter Trustees,MCT001,Director Corp Resources S151,Balance Sheet,Reserves
http://thanet.gov.uk/supplierspend,Thanet District Council,23/09/2014,369422,14250.23,Margate Charter Trustees,MCT001,Director of Operational Services,Revenue,Third Party Payments
http://thanet.gov.uk/supplierspend,Thanet District Council,23/09/2014,367058,356.00,Maroon Office Limited,MAR101,Director of Community Services,Revenue,Supplies and Services
http://thanet.gov.uk/supplierspend,Thanet District Council,23/09/2014,368815,450.00,Maxwells Grounds Maintenance Ltd,MAX002,Director of Community Services,Revenue,Premises Related Expenditure
http://thanet.gov.uk/supplierspend,Thanet District Council,23/09/2014,368882,12013.49,Mears Ltd,MEA003,Director Corp Resources S151,Balance Sheet,Current Assets
http://thanet.gov.uk/supplierspend,Thanet District Council,23/09/2014,368885,1913.39,Mears Ltd,MEA003,Director Corp Resources S151,Balance Sheet,Current Assets
http://thanet.gov.uk/supplierspend,Thanet District Council,23/09/2014,368912,569.51,Mears Ltd,MEA003,Director of Community Services,Revenue,Premises Related Expenditure
http://thanet.gov.uk/supplierspend,Thanet District Council,23/09/2014,368915,330.84,Mears Ltd,MEA003,Director of Operational Services,Revenue,Premises Related Expenditure
http://thanet.gov.uk/supplierspend,Thanet District Council,23/09/2014,368921,1433.07,Mears Ltd,MEA003,Director of Community Services,Revenue,Premises Related Expenditure
http://thanet.gov.uk/supplierspend,Thanet District Council,23/09/2014,368921,242.41,Mears Ltd,MEA003,Director of Operational Services,Revenue,Premises Related Expenditure
http://thanet.gov.uk/supplierspend,Thanet District Council,23/09/2014,368922,422.11,Mears Ltd,MEA003,Director of Community Services,Revenue,Premises Related Expenditure
http://thanet.gov.uk/supplierspend,Thanet District Council,23/09/2014,368895,249.40,Med Clean South Ltd,MED015,Director of Operational Services,Revenue,Premises Related Expenditure
http://thanet.gov.uk/supplierspend,Thanet District Council,23/09/2014,368924,1241.75,Med Clean South Ltd,MED015,Director of Operational Services,Revenue,Premises Related Expenditure
http://thanet.gov.uk/supplierspend,Thanet District Council,23/09/2014,369429,25134.50,Minster Parish Council,MIN001,Director Corp Resources S151,Balance Sheet,Reserves
http://thanet.gov.uk/supplierspend,Thanet District Council,23/09/2014,369429,16651.61,Minster Parish Council,MIN001,Director of Operational Services,Revenue,Third Party Payments
http://thanet.gov.uk/supplierspend,Thanet District Council,23/09/2014,369430,3981.00,Monkton Parish Council,MON001,Director Corp Resources S151,Balance Sheet,Reserves
http://thanet.gov.uk/supplierspend,Thanet District Council,23/09/2014,369430,1217.89,Monkton Parish Council,MON001,Director of Operational Services,Revenue,Third Party Payments
http://thanet.gov.uk/supplierspend,Thanet District Council,23/09/2014,369399,519.60,Morgan Jones Ltd,MOR001,Director Corp Resources S151,Revenue,Employees
http://thanet.gov.uk/supplierspend,Thanet District Council,23/09/2014,369195,1650.00,Nescot,NES002,Director of Community Services,Revenue,Supplies and Services
http://thanet.gov.uk/supplierspend,Thanet District Council,23/09/2014,369484,32716.00,Northgate Inf Solutions Uk Ltd,NOR018,Director Corp Resources S151,Revenue,Supplies and Services
http://thanet.gov.uk/supplierspend,Thanet District Council,23/09/2014,368786,1300.00,Ovenden Plant Hire Ltd,OVE002,Director Corp Resources S151,Revenue,Transport Related Expenditure
http://thanet.gov.uk/supplierspend,Thanet District Council,23/09/2014,367689,550.00,P R Bolder,BOL004,Director of Operational Services,Revenue,Premises Related Expenditure
http://thanet.gov.uk/supplierspend,Thanet District Council,23/09/2014,368911,12484.00,Parkeon Limited,PAR063,Director of Operational Services,Revenue,Supplies and Services
http://thanet.gov.uk/supplierspend,Thanet District Council,23/09/2014,369409,7130.00,Precept Cs Ltd,PRE032,Director Corp Resources S151,Balance Sheet,Long Term Assets
http://thanet.gov.uk/supplierspend,Thanet District Council,23/09/2014,369410,4113.43,Precept Cs Ltd,PRE032,Director Corp Resources S151,Balance Sheet,Long Term Assets
http://thanet.gov.uk/supplierspend,Thanet District Council,23/09/2014,369267,7984.41,Probrand Ltd,PRO012,Director Corp Resources S151,Revenue,Supplies and Services
http://thanet.gov.uk/supplierspend,Thanet District Council,23/09/2014,368247,1382.50,R Cannon,CAN007,Director of Operational Services,Revenue,Supplies and Services
http://thanet.gov.uk/supplierspend,Thanet District Council,23/09/2014,368859,1310.00,Rackspace Limited,RAC006,East Kent Shared Services,Revenue,Supplies and Services
http://thanet.gov.uk/supplierspend,Thanet District Council,23/09/2014,369424,140818.50,Ramsgate Town Council,RAM031,Director Corp Resources S151,Balance Sheet,Reserves
http://thanet.gov.uk/supplierspend,Thanet District Council,23/09/2014,369424,44261.12,Ramsgate Town Council,RAM031,Director of Operational Services,Revenue,Third Party Payments
http://thanet.gov.uk/supplierspend,Thanet District Council,23/09/2014,369222,1800.00,Ransomes Jacobsen Ltd,RAN003,Director of Operational Services,Revenue,Employees
http://thanet.gov.uk/supplierspend,Thanet District Council,23/09/2014,368937,4210.00,Reed Business Information Ltd,REE002,Director of Community Services,Revenue,Supplies and Services
http://thanet.gov.uk/supplierspend,Thanet District Council,23/09/2014,369008,2350.00,Rps Consultants,RPS001,Director Corp Resources S151,Balance Sheet,Current Assets
http://thanet.gov.uk/supplierspend,Thanet District Council,23/09/2014,369272,900.00,Sellick Partnership Group Ltd,SEL011,Director of Community Services,Revenue,Supplies and Services
http://thanet.gov.uk/supplierspend,Thanet District Council,23/09/2014,369294,828.45,Sellick Partnership Group Ltd,SEL011,Director Corp Resources S151,Revenue,Employees
http://thanet.gov.uk/supplierspend,Thanet District Council,23/09/2014,368866,1500.00,Sjr Pm Solutions Limited,SJR001,East Kent Shared Services,Revenue,Supplies and Services
http://thanet.gov.uk/supplierspend,Thanet District Council,23/09/2014,369247,1500.00,Sjr Pm Solutions Limited,SJR001,East Kent Shared Services,Revenue,Supplies and Services
http://thanet.gov.uk/supplierspend,Thanet District Council,23/09/2014,369202,330.00,"St John, Kent",STJ002,Director of Community Services,Revenue,Supplies and Services
http://thanet.gov.uk/supplierspend,Thanet District Council,23/09/2014,369431,7562.50,St Nicholas At Wade & Sarre P Counc,STN001,Director Corp Resources S151,Balance Sheet,Reserves
http://thanet.gov.uk/supplierspend,Thanet District Council,23/09/2014,369431,366.50,St Nicholas At Wade & Sarre P Counc,STN001,Director of Operational Services,Revenue,Supplies and Services
http://thanet.gov.uk/supplierspend,Thanet District Council,23/09/2014,369431,4507.45,St Nicholas At Wade & Sarre P Counc,STN001,Director of Operational Services,Revenue,Third Party Payments
http://thanet.gov.uk/supplierspend,Thanet District Council,23/09/2014,368367,1602.98,Swale Heating Ltd,SWA006,Director Corp Resources S151,Balance Sheet,Current Assets
http://thanet.gov.uk/supplierspend,Thanet District Council,23/09/2014,368368,1813.02,Swale Heating Ltd,SWA006,Director Corp Resources S151,Balance Sheet,Current Assets
http://thanet.gov.uk/supplierspend,Thanet District Council,23/09/2014,368369,1552.73,Swale Heating Ltd,SWA006,Director Corp Resources S151,Balance Sheet,Current Assets
http://thanet.gov.uk/supplierspend,Thanet District Council,23/09/2014,368370,1552.73,Swale Heating Ltd,SWA006,Director Corp Resources S151,Balance Sheet,Current Assets
http://thanet.gov.uk/supplierspend,Thanet District Council,23/09/2014,368371,1813.02,Swale Heating Ltd,SWA006,Director Corp Resources S151,Balance Sheet,Current Assets
http://thanet.gov.uk/supplierspend,Thanet District Council,23/09/2014,368372,1878.35,Swale Heating Ltd,SWA006,Director Corp Resources S151,Balance Sheet,Current Assets
http://thanet.gov.uk/supplierspend,Thanet District Council,23/09/2014,368373,1417.05,Swale Heating Ltd,SWA006,Director Corp Resources S151,Balance Sheet,Current Assets
http://thanet.gov.uk/supplierspend,Thanet District Council,23/09/2014,368374,2542.65,Swale Heating Ltd,SWA006,Director Corp Resources S151,Balance Sheet,Current Assets
http://thanet.gov.uk/supplierspend,Thanet District Council,23/09/2014,368375,1546.70,Swale Heating Ltd,SWA006,Director Corp Resources S151,Balance Sheet,Current Assets
http://thanet.gov.uk/supplierspend,Thanet District Council,23/09/2014,368376,1747.70,Swale Heating Ltd,SWA006,Director Corp Resources S151,Balance Sheet,Current Assets
http://thanet.gov.uk/supplierspend,Thanet District Council,23/09/2014,368377,1546.70,Swale Heating Ltd,SWA006,Director Corp Resources S151,Balance Sheet,Current Assets
http://thanet.gov.uk/supplierspend,Thanet District Council,23/09/2014,368378,1546.70,Swale Heating Ltd,SWA006,Director Corp Resources S151,Balance Sheet,Current Assets
http://thanet.gov.uk/supplierspend,Thanet District Council,23/09/2014,368379,1546.70,Swale Heating Ltd,SWA006,Director Corp Resources S151,Balance Sheet,Current Assets
http://thanet.gov.uk/supplierspend,Thanet District Council,23/09/2014,368380,2149.70,Swale Heating Ltd,SWA006,Director Corp Resources S151,Balance Sheet,Current Assets
http://thanet.gov.uk/supplierspend,Thanet District Council,23/09/2014,368381,1677.35,Swale Heating Ltd,SWA006,Director Corp Resources S151,Balance Sheet,Current Assets
http://thanet.gov.uk/supplierspend,Thanet District Council,23/09/2014,368382,2505.47,Swale Heating Ltd,SWA006,Director Corp Resources S151,Balance Sheet,Current Assets
http://thanet.gov.uk/supplierspend,Thanet District Council,23/09/2014,368383,1747.70,Swale Heating Ltd,SWA006,Director Corp Resources S151,Balance Sheet,Current Assets
http://thanet.gov.uk/supplierspend,Thanet District Council,23/09/2014,368384,1546.70,Swale Heating Ltd,SWA006,Director Corp Resources S151,Balance Sheet,Current Assets
http://thanet.gov.uk/supplierspend,Thanet District Council,23/09/2014,368385,2949.68,Swale Heating Ltd,SWA006,Director Corp Resources S151,Balance Sheet,Current Assets
http://thanet.gov.uk/supplierspend,Thanet District Council,23/09/2014,368386,1546.70,Swale Heating Ltd,SWA006,Director Corp Resources S151,Balance Sheet,Current Assets
http://thanet.gov.uk/supplierspend,Thanet District Council,23/09/2014,368387,1546.70,Swale Heating Ltd,SWA006,Director Corp Resources S151,Balance Sheet,Current Assets
http://thanet.gov.uk/supplierspend,Thanet District Council,23/09/2014,368388,4368.43,Swale Heating Ltd,SWA006,Director Corp Resources S151,Balance Sheet,Current Assets
http://thanet.gov.uk/supplierspend,Thanet District Council,23/09/2014,368389,1869.00,Swale Heating Ltd,SWA006,Director Corp Resources S151,Balance Sheet,Current Assets
http://thanet.gov.uk/supplierspend,Thanet District Council,23/09/2014,368390,1878.35,Swale Heating Ltd,SWA006,Director Corp Resources S151,Balance Sheet,Current Assets
http://thanet.gov.uk/supplierspend,Thanet District Council,23/09/2014,368443,25115.54,Swale Heating Ltd,SWA006,Director Corp Resources S151,Balance Sheet,Current Assets
http://thanet.gov.uk/supplierspend,Thanet District Council,23/09/2014,368473,1650.00,Swale Heating Ltd,SWA006,Director Corp Resources S151,Balance Sheet,Current Assets
http://thanet.gov.uk/supplierspend,Thanet District Council,23/09/2014,368474,1546.70,Swale Heating Ltd,SWA006,Director Corp Resources S151,Balance Sheet,Current Assets
http://thanet.gov.uk/supplierspend,Thanet District Council,23/09/2014,368475,1417.05,Swale Heating Ltd,SWA006,Director Corp Resources S151,Balance Sheet,Current Assets
http://thanet.gov.uk/supplierspend,Thanet District Council,23/09/2014,368476,1878.35,Swale Heating Ltd,SWA006,Director Corp Resources S151,Balance Sheet,Current Assets
http://thanet.gov.uk/supplierspend,Thanet District Council,23/09/2014,368477,1747.70,Swale Heating Ltd,SWA006,Director Corp Resources S151,Balance Sheet,Current Assets
http://thanet.gov.uk/supplierspend,Thanet District Council,23/09/2014,368478,1677.35,Swale Heating Ltd,SWA006,Director Corp Resources S151,Balance Sheet,Current Assets
http://thanet.gov.uk/supplierspend,Thanet District Council,23/09/2014,368479,1546.70,Swale Heating Ltd,SWA006,Director Corp Resources S151,Balance Sheet,Current Assets
http://thanet.gov.uk/supplierspend,Thanet District Council,23/09/2014,369207,658.62,Terberg Matec Uk Limited,TER010,Director Corp Resources S151,Revenue,Transport Related Expenditure
http://thanet.gov.uk/supplierspend,Thanet District Council,23/09/2014,368872,388.80,Thanet Waste Services Ltd,TWA001,Director of Operational Services,Revenue,Third Party Payments
http://thanet.gov.uk/supplierspend,Thanet District Council,23/09/2014,368950,338.75,The Baypoint Club Limited,BAY009,Director of Community Services,Revenue,Premises Related Expenditure
http://thanet.gov.uk/supplierspend,Thanet District Council,23/09/2014,369396,916.66,The Glenwood Hotel,GLE007,Director of Community Services,Revenue,Supplies and Services
http://thanet.gov.uk/supplierspend,Thanet District Council,23/09/2014,368870,1000.00,The Kent Peoples Trust,TKP001,Director of Community Services,Revenue,Supplies and Services
http://thanet.gov.uk/supplierspend,Thanet District Council,23/09/2014,369488,990.00,Thoroughbred Ind Doors(Royston)Ltd,THO049,Director of Community Services,Revenue,Premises Related Expenditure
http://thanet.gov.uk/supplierspend,Thanet District Council,23/09/2014,368335,540.00,Total Sports Coaching,TOT014,Director of Community Services,Revenue,Supplies and Services
http://thanet.gov.uk/supplierspend,Thanet District Council,23/09/2014,368451,1805.66,Tourism Works,TOU007,Director of Community Services,Revenue,Supplies and Services
http://thanet.gov.uk/supplierspend,Thanet District Council,23/09/2014,369411,6680.00,Trueden Disability Adaptations Ltd,TRU012,Director Corp Resources S151,Balance Sheet,Long Term Assets
http://thanet.gov.uk/supplierspend,Thanet District Council,23/09/2014,369255,300.00,Ultra Electronics Limited,ULT007,East Kent Shared Services,Revenue,Supplies and Services
http://thanet.gov.uk/supplierspend,Thanet District Council,23/09/2014,369256,320.00,Ultra Electronics Limited,ULT007,Director of Community Services,Revenue,Supplies and Services
http://thanet.gov.uk/supplierspend,Thanet District Council,23/09/2014,369257,2035.00,Ultra Electronics Limited,ULT007,East Kent Shared Services,Revenue,Supplies and Services
http://thanet.gov.uk/supplierspend,Thanet District Council,23/09/2014,368800,509.13,Unibind Systems Ltd,UNI027,Director of Community Services,Revenue,Supplies and Services
http://thanet.gov.uk/supplierspend,Thanet District Council,23/09/2014,368944,322.68,Veolia Es (Uk) Ltd,VEO001,Director of Operational Services,Revenue,Premises Related Expenditure
http://thanet.gov.uk/supplierspend,Thanet District Council,23/09/2014,369487,42.93,Veolia Es (Uk) Ltd,VEO001,Director Corp Resources S151,Balance Sheet,Current Assets
http://thanet.gov.uk/supplierspend,Thanet District Council,23/09/2014,369487,2489.18,Veolia Es (Uk) Ltd,VEO001,Director of Operational Services,Revenue,Premises Related Expenditure
http://thanet.gov.uk/supplierspend,Thanet District Council,23/09/2014,368948,247.17,Viridor Waste Management Ltd,VIR003,Director of Community Services,Revenue,Third Party Payments
http://thanet.gov.uk/supplierspend,Thanet District Council,23/09/2014,369292,537.88,Viridor Waste Management Ltd,VIR003,Director of Community Services,Revenue,Third Party Payments
http://thanet.gov.uk/supplierspend,Thanet District Council,23/09/2014,369485,283.32,Viridor Waste Management Ltd,VIR003,Director of Community Services,Revenue,Premises Related Expenditure
http://thanet.gov.uk/supplierspend,Thanet District Council,23/09/2014,368760,1250.00,W Brazil & Bros,BRA001,Director Corp Resources S151,Balance Sheet,Current Assets
http://thanet.gov.uk/supplierspend,Thanet District Council,23/09/2014,368761,550.00,W Brazil & Bros,BRA001,Director Corp Resources S151,Balance Sheet,Current Assets
http://thanet.gov.uk/supplierspend,Thanet District Council,23/09/2014,368762,630.00,W Brazil & Bros,BRA001,Director Corp Resources S151,Balance Sheet,Current Assets
http://thanet.gov.uk/supplierspend,Thanet District Council,23/09/2014,368763,1250.00,W Brazil & Bros,BRA001,Director Corp Resources S151,Balance Sheet,Current Assets
http://thanet.gov.uk/supplierspend,Thanet District Council,23/09/2014,368764,350.00,W Brazil & Bros,BRA001,Director Corp Resources S151,Balance Sheet,Current Assets
http://thanet.gov.uk/supplierspend,Thanet District Council,23/09/2014,368765,1300.00,W Brazil & Bros,BRA001,Director Corp Resources S151,Balance Sheet,Current Assets
http://thanet.gov.uk/supplierspend,Thanet District Council,23/09/2014,368767,420.00,W Brazil & Bros,BRA001,Director Corp Resources S151,Balance Sheet,Current Assets
http://thanet.gov.uk/supplierspend,Thanet District Council,23/09/2014,368336,2299.30,Waste Consulting Llp,WAS005,Director of Operational Services,Revenue,Supplies and Services
http://thanet.gov.uk/supplierspend,Thanet District Council,23/09/2014,368837,380.00,Weather2 Limited,WEA008,Director of Operational Services,Revenue,Supplies and Services
http://thanet.gov.uk/supplierspend,Thanet District Council,24/09/2014,369683,115000.00,Boys & Maughan,BOY002,Director Corp Resources S151,Balance Sheet,Long Term Assets
http://thanet.gov.uk/supplierspend,Thanet District Council,24/09/2014,369717,1306.33,Co-Operative Bank Paypoint,COO018,Director Corp Resources S151,Revenue,Supplies and Services
http://thanet.gov.uk/supplierspend,Thanet District Council,24/09/2014,369717,435.45,Co-Operative Bank Paypoint,COO018,Director of Community Services,Revenue,Supplies and Services
http://thanet.gov.uk/supplierspend,Thanet District Council,24/09/2014,369693,285.00,H M Land Registry,HML002,Director of Community Services,Revenue,Supplies and Services
http://thanet.gov.uk/supplierspend,Thanet District Council,24/09/2014,369693,3.00,H M Land Registry,HML002,East Kent Shared Services,Revenue,Supplies and Services
http://thanet.gov.uk/supplierspend,Thanet District Council,24/09/2014,369718,262.08,Nat West Bank,NWE001,Director Corp Resources S151,Revenue,Supplies and Services
http://thanet.gov.uk/supplierspend,Thanet District Council,24/09/2014,369696,63554.36,Public Works Loan Board,PWL001,Director Corp Resources S151,Balance Sheet,Current Assets
http://thanet.gov.uk/supplierspend,Thanet District Council,24/09/2014,369702,1922.37,Santander,SAN017,Director Corp Resources S151,Revenue,Supplies and Services
http://thanet.gov.uk/supplierspend,Thanet District Council,24/09/2014,369702,640.79,Santander,SAN017,Director of Community Services,Revenue,Supplies and Services
http://thanet.gov.uk/supplierspend,Thanet District Council,24/09/2014,369703,901.56,Santander,SAN017,Director Corp Resources S151,Revenue,Supplies and Services
http://thanet.gov.uk/supplierspend,Thanet District Council,24/09/2014,369705,2501049.00,Secretary Of State,SEC003,Director Corp Resources S151,Balance Sheet,Current Liabilities
http://thanet.gov.uk/supplierspend,Thanet District Council,24/09/2014,369682,249999.00,Starbuck & Mack,STA057,Director Corp Resources S151,Balance Sheet,Long Term Assets
http://thanet.gov.uk/supplierspend,Thanet District Council,24/09/2014,369709,1404.41,Worldpay Ltd,WOR008,Director Corp Resources S151,Revenue,Supplies and Services
http://thanet.gov.uk/supplierspend,Thanet District Council,24/09/2014,369710,293.97,Worldpay Ltd,WOR008,Director Corp Resources S151,Revenue,Supplies and Services
http://thanet.gov.uk/supplierspend,Thanet District Council,24/09/2014,369711,712.54,Worldpay Ltd,WOR008,Director of Operational Services,Revenue,Supplies and Services
http://thanet.gov.uk/supplierspend,Thanet District Council,24/09/2014,369716,1525.65,Worldpay Ltd,WOR008,Director Corp Resources S151,Revenue,Supplies and Services
http://thanet.gov.uk/supplierspend,Thanet District Council,26/09/2014,369674,307.77,Academia Ltd,ACA008,East Kent Shared Services,Revenue,Supplies and Services
http://thanet.gov.uk/supplierspend,Thanet District Council,26/09/2014,PC5851,130.00,Allpay.Net Visa,N/A,Director of Community Services,Revenue,Supplies and Services
http://thanet.gov.uk/supplierspend,Thanet District Council,26/09/2014,PC5852,130.00,Allpay.Net Visa,N/A,Director of Community Services,Revenue,Supplies and Services
http://thanet.gov.uk/supplierspend,Thanet District Council,26/09/2014,PC5933,9.21,Amazon Eu,N/A,Director of Community Services,Revenue,Supplies and Services
http://thanet.gov.uk/supplierspend,Thanet District Council,26/09/2014,PC5934,9.21,Amazon Eu,N/A,Director of Community Services,Revenue,Supplies and Services
http://thanet.gov.uk/supplierspend,Thanet District Council,26/09/2014,PC5839,39.04,Amazon Mktplce,N/A,Director of Community Services,Revenue,Supplies and Services
http://thanet.gov.uk/supplierspend,Thanet District Council,26/09/2014,PC5892,33.75,Amazon Mktplce Eu-Uk / Sorte,N/A,Director of Operational Services,Revenue,Supplies and Services
http://thanet.gov.uk/supplierspend,Thanet District Council,26/09/2014,PC5891,121.50,Amazon Mktplce Eu-Uk / Tooled-Up,N/A,Director of Operational Services,Revenue,Supplies and Services
http://thanet.gov.uk/supplierspend,Thanet District Council,26/09/2014,369843,5020.00,Ascendit Lifts Ltd,ASC001,Director Corp Resources S151,Balance Sheet,Long Term Assets
http://thanet.gov.uk/supplierspend,Thanet District Council,26/09/2014,369849,4425.00,Ascendit Lifts Ltd,ASC001,Director Corp Resources S151,Balance Sheet,Long Term Assets
http://thanet.gov.uk/supplierspend,Thanet District Council,26/09/2014,368883,7875.00,Ass For Public Service Excellence,ASS013,Director of Operational Services,Revenue,Supplies and Services
http://thanet.gov.uk/supplierspend,Thanet District Council,26/09/2014,368931,7600.00,Ass For Public Service Excellence,ASS013,Director of Operational Services,Revenue,Supplies and Services
http://thanet.gov.uk/supplierspend,Thanet District Council,26/09/2014,369336,654.68,B & G Cleaning Systems Limited,BGC001,Director Corp Resources S151,Balance Sheet,Long Term Assets
http://thanet.gov.uk/supplierspend,Thanet District Council,26/09/2014,PC5831,37.64,Booker Ltd,N/A,Director of Community Services,Revenue,Supplies and Services
http://thanet.gov.uk/supplierspend,Thanet District Council,26/09/2014,PC5878,49.99,Booker Ltd,N/A,Director of Community Services,Revenue,Supplies and Services
http://thanet.gov.uk/supplierspend,Thanet District Council,26/09/2014,PC5879,17.96,Booker Ltd,N/A,Director of Community Services,Revenue,Supplies and Services
http://thanet.gov.uk/supplierspend,Thanet District Council,26/09/2014,PC5880,12.66,Booker Ltd,N/A,Director of Community Services,Revenue,Supplies and Services
http://thanet.gov.uk/supplierspend,Thanet District Council,26/09/2014,PC5881,12.66,Booker Ltd,N/A,Director of Community Services,Revenue,Supplies and Services
http://thanet.gov.uk/supplierspend,Thanet District Council,26/09/2014,PC5882,12.67,Booker Ltd,N/A,Director of Community Services,Revenue,Supplies and Services
http://thanet.gov.uk/supplierspend,Thanet District Council,26/09/2014,369858,1500.00,Bowman Maintenance Contracting,BMC001,Director of Operational Services,Revenue,Supplies and Services
http://thanet.gov.uk/supplierspend,Thanet District Council,26/09/2014,368861,1832.00,Bridge Security Cctv Ltd,BRI039,Director of Community Services,Revenue,Supplies and Services
http://thanet.gov.uk/supplierspend,Thanet District Council,26/09/2014,369340,16923.08,Canterbury City Council,CAN004,Director of Operational Services,Revenue,Supplies and Services
http://thanet.gov.uk/supplierspend,Thanet District Council,26/09/2014,369477,19878.33,Canterbury City Council,CAN004,East Kent Shared Services,Revenue,Supplies and Services
http://thanet.gov.uk/supplierspend,Thanet District Council,26/09/2014,369266,1600.00,Canterbury Scaffolding,CAN023,Director Corp Resources S151,Balance Sheet,Long Term Assets
http://thanet.gov.uk/supplierspend,Thanet District Council,26/09/2014,PC5872,99.99,Cereproc Limited,N/A,East Kent Shared Services,Revenue,Supplies and Services
http://thanet.gov.uk/supplierspend,Thanet District Council,26/09/2014,369333,460.65,Channel Commercials Plc,CCO001,Director Corp Resources S151,Revenue,Transport Related Expenditure
http://thanet.gov.uk/supplierspend,Thanet District Council,26/09/2014,369445,394.59,Channel Commercials Plc,CCO001,Director Corp Resources S151,Revenue,Transport Related Expenditure
http://thanet.gov.uk/supplierspend,Thanet District Council,26/09/2014,PC5887,270.00,CIEH,N/A,Director of Community Services,Revenue,Supplies and Services
http://thanet.gov.uk/supplierspend,Thanet District Council,26/09/2014,PC5888,270.00,CIEH,N/A,Director of Community Services,Revenue,Supplies and Services
http://thanet.gov.uk/supplierspend,Thanet District Council,26/09/2014,PC5860,99.25,Cimspa,N/A,Director of Community Services,Revenue,Supplies and Services
http://thanet.gov.uk/supplierspend,Thanet District Council,26/09/2014,PC5916,33.96,Cimspa,N/A,Director of Community Services,Revenue,Supplies and Services
http://thanet.gov.uk/supplierspend,Thanet District Council,26/09/2014,PC5858,114.24,Cips,N/A,Director Corp Resources S151,Revenue,Employees
http://thanet.gov.uk/supplierspend,Thanet District Council,26/09/2014,PC5857,50.00,County Court,N/A,Director of Community Services,Revenue,Supplies and Services
http://thanet.gov.uk/supplierspend,Thanet District Council,26/09/2014,PC5877,50.00,County Court,N/A,Director of Operational Services,Revenue,Premises Related Expenditure
http://thanet.gov.uk/supplierspend,Thanet District Council,26/09/2014,PC5914,12.67,Delawre Corp and Tax Web,N/A,Director Corp Resources S151,Revenue,Supplies and Services
http://thanet.gov.uk/supplierspend,Thanet District Council,26/09/2014,PC5915,12.67,Delawre Corp and Tax Web,N/A,Director Corp Resources S151,Revenue,Supplies and Services
http://thanet.gov.uk/supplierspend,Thanet District Council,26/09/2014,369326,562.86,Dennis Eagle Ltd,DEN005,Director Corp Resources S151,Revenue,Transport Related Expenditure
http://thanet.gov.uk/supplierspend,Thanet District Council,26/09/2014,369327,229.88,Dennis Eagle Ltd,DEN005,Director Corp Resources S151,Revenue,Transport Related Expenditure
http://thanet.gov.uk/supplierspend,Thanet District Council,26/09/2014,369328,257.92,Dennis Eagle Ltd,DEN005,Director Corp Resources S151,Revenue,Transport Related Expenditure
http://thanet.gov.uk/supplierspend,Thanet District Council,26/09/2014,369670,459.76,Dennis Eagle Ltd,DEN005,Director Corp Resources S151,Revenue,Transport Related Expenditure
http://thanet.gov.uk/supplierspend,Thanet District Council,26/09/2014,PC5886,408.00,Domein Westhoek,N/A,Director of Operational Services,Revenue,Supplies and Services
http://thanet.gov.uk/supplierspend,Thanet District Council,26/09/2014,369268,495.00,Dover District Council,DOV001,Director Corp Resources S151,Revenue,Employees
http://thanet.gov.uk/supplierspend,Thanet District Council,26/09/2014,PC5898,652.50,DVLA,N/A,Director of Operational Services,Revenue,Transport Related Expenditure
http://thanet.gov.uk/supplierspend,Thanet District Council,26/09/2014,PC5899,652.50,DVLA,N/A,Director of Operational Services,Revenue,Transport Related Expenditure
http://thanet.gov.uk/supplierspend,Thanet District Council,26/09/2014,PC5900,652.50,DVLA,N/A,Director of Operational Services,Revenue,Transport Related Expenditure
http://thanet.gov.uk/supplierspend,Thanet District Council,26/09/2014,PC5901,652.50,DVLA,N/A,Director of Operational Services,Revenue,Transport Related Expenditure
http://thanet.gov.uk/supplierspend,Thanet District Council,26/09/2014,PC5902,227.50,DVLA,N/A,Director of Community Services,Revenue,Transport Related Expenditure
http://thanet.gov.uk/supplierspend,Thanet District Council,26/09/2014,PC5903,227.50,DVLA,N/A,Director of Community Services,Revenue,Transport Related Expenditure
http://thanet.gov.uk/supplierspend,Thanet District Council,26/09/2014,PC5904,167.50,DVLA,N/A,Director of Operational Services,Revenue,Transport Related Expenditure
http://thanet.gov.uk/supplierspend,Thanet District Council,26/09/2014,PC5905,227.50,DVLA,N/A,Director of Operational Services,Revenue,Transport Related Expenditure
http://thanet.gov.uk/supplierspend,Thanet District Council,26/09/2014,PC5906,227.50,DVLA,N/A,Director of Community Services,Revenue,Transport Related Expenditure
http://thanet.gov.uk/supplierspend,Thanet District Council,26/09/2014,367655,2300.19,E Saunders Margate Ltd,SAU001,Director Corp Resources S151,Balance Sheet,Current Assets
http://thanet.gov.uk/supplierspend,Thanet District Council,26/09/2014,PC5866,166.00,E/Tunnel Internet,N/A,Director of Operational Services,Revenue,Transport Related Expenditure
http://thanet.gov.uk/supplierspend,Thanet District Council,26/09/2014,369480,397.20,Eagle Envelopes Ltd,EAG001,East Kent Shared Services,Revenue,Supplies and Services
http://thanet.gov.uk/supplierspend,Thanet District Council,26/09/2014,PC5864,179.00,Emap Ltd,N/A,East Kent Shared Services,Revenue,Supplies and Services
http://thanet.gov.uk/supplierspend,Thanet District Council,26/09/2014,PC5829,10.00,F J Rogers,N/A,Director of Community Services,Revenue,Supplies and Services
http://thanet.gov.uk/supplierspend,Thanet District Council,26/09/2014,PC5849,20.00,F J Rogers,N/A,Director of Community Services,Revenue,Supplies and Services
http://thanet.gov.uk/supplierspend,Thanet District Council,26/09/2014,PC5893,80.00,F J Rogers,N/A,Director of Community Services,Revenue,Supplies and Services
http://thanet.gov.uk/supplierspend,Thanet District Council,26/09/2014,369846,403.80,Family Mosaic Housing,FAM001,Director Corp Resources S151,Balance Sheet,Long Term Assets
http://thanet.gov.uk/supplierspend,Thanet District Council,26/09/2014,369850,1202.92,Family Mosaic Housing,FAM001,Director Corp Resources S151,Balance Sheet,Long Term Assets
http://thanet.gov.uk/supplierspend,Thanet District Council,26/09/2014,PC5861,24.89,Federal Express Europe,N/A,Director of Community Services,Revenue,Supplies and Services
http://thanet.gov.uk/supplierspend,Thanet District Council,26/09/2014,369213,6742.92,Future-Tech Sci Ltd,FUT001,Director of Community Services,Revenue,Premises Related Expenditure
http://thanet.gov.uk/supplierspend,Thanet District Council,26/09/2014,369673,16000.00,G Chittenden,CHI001,Director of Operational Services,Revenue,Premises Related Expenditure
http://thanet.gov.uk/supplierspend,Thanet District Council,26/09/2014,369857,2340.00,G Chittenden,CHI001,Director Corp Resources S151,Balance Sheet,Long Term Assets
http://thanet.gov.uk/supplierspend,Thanet District Council,26/09/2014,PC5923,261.60,Gas Safe Consultants,N/A,Director of Operational Services,Revenue,Employees
http://thanet.gov.uk/supplierspend,Thanet District Council,26/09/2014,369402,750.00,George Mccabe,MCC001,Director Corp Resources S151,Revenue,Premises Related Expenditure
http://thanet.gov.uk/supplierspend,Thanet District Council,26/09/2014,369403,290.00,Goodwins,GOO001,Director Corp Resources S151,Revenue,Supplies and Services
http://thanet.gov.uk/supplierspend,Thanet District Council,26/09/2014,368450,1500.00,Hem Des Llp,HEM007,Director Corp Resources S151,Balance Sheet,Long Term Assets
http://thanet.gov.uk/supplierspend,Thanet District Council,26/09/2014,369335,1239.69,Hilton Cabinet Co Ltd,HIL002,Director of Operational Services,Revenue,Supplies and Services
http://thanet.gov.uk/supplierspend,Thanet District Council,26/09/2014,PC5867,75.00,Hm Courts Services,N/A,East Kent Shared Services,Revenue,Supplies and Services
http://thanet.gov.uk/supplierspend,Thanet District Council,26/09/2014,PC5868,245.00,Hm Courts Services,N/A,East Kent Shared Services,Revenue,Supplies and Services
http://thanet.gov.uk/supplierspend,Thanet District Council,26/09/2014,369241,5468.48,Holbrook Revell Electrical Ltd,HOL015,Director of Operational Services,Revenue,Premises Related Expenditure
http://thanet.gov.uk/supplierspend,Thanet District Council,26/09/2014,369241,1969.12,Holbrook Revell Electrical Ltd,HOL015,Director of Operational Services,Revenue,Supplies and Services
http://thanet.gov.uk/supplierspend,Thanet District Council,26/09/2014,369243,2392.00,Holbrook Revell Electrical Ltd,HOL015,Director of Operational Services,Revenue,Premises Related Expenditure
http://thanet.gov.uk/supplierspend,Thanet District Council,26/09/2014,369245,32070.43,Holbrook Revell Electrical Ltd,HOL015,Director Corp Resources S151,Balance Sheet,Long Term Assets
http://thanet.gov.uk/supplierspend,Thanet District Council,26/09/2014,369675,2994.73,Holbrook Revell Electrical Ltd,HOL015,Director of Operational Services,Revenue,Premises Related Expenditure
http://thanet.gov.uk/supplierspend,Thanet District Council,26/09/2014,369676,6935.15,Holbrook Revell Electrical Ltd,HOL015,Director of Operational Services,Revenue,Supplies and Services
http://thanet.gov.uk/supplierspend,Thanet District Council,26/09/2014,369185,346.84,Hr Go Recruitment Ltd,HRG002,Director Corp Resources S151,Revenue,Employees
http://thanet.gov.uk/supplierspend,Thanet District Council,26/09/2014,369278,502.55,Hr Go Recruitment Ltd,HRG002,Director Corp Resources S151,Revenue,Employees
http://thanet.gov.uk/supplierspend,Thanet District Council,26/09/2014,369279,1067.14,Hr Go Recruitment Ltd,HRG002,Director Corp Resources S151,Revenue,Employees
http://thanet.gov.uk/supplierspend,Thanet District Council,26/09/2014,369293,485.06,Hr Go Recruitment Ltd,HRG002,Director Corp Resources S151,Revenue,Employees
http://thanet.gov.uk/supplierspend,Thanet District Council,26/09/2014,369346,454.94,Hr Go Recruitment Ltd,HRG002,Director Corp Resources S151,Revenue,Employees
http://thanet.gov.uk/supplierspend,Thanet District Council,26/09/2014,369348,1754.44,Hr Go Recruitment Ltd,HRG002,Director Corp Resources S151,Revenue,Employees
http://thanet.gov.uk/supplierspend,Thanet District Council,26/09/2014,369349,442.52,Hr Go Recruitment Ltd,HRG002,Director Corp Resources S151,Revenue,Employees
http://thanet.gov.uk/supplierspend,Thanet District Council,26/09/2014,369352,7808.62,Hr Go Recruitment Ltd,HRG002,Director Corp Resources S151,Revenue,Employees
http://thanet.gov.uk/supplierspend,Thanet District Council,26/09/2014,369353,9494.68,Hr Go Recruitment Ltd,HRG002,Director Corp Resources S151,Revenue,Employees
http://thanet.gov.uk/supplierspend,Thanet District Council,26/09/2014,PC5865,15.00,Hse Books,N/A,Director of Operational Services,Revenue,Supplies and Services
http://thanet.gov.uk/supplierspend,Thanet District Council,26/09/2014,369297,-855.00,Hydro-Cleansing Ltd,HYD012,Director of Operational Services,Revenue,Premises Related Expenditure
http://thanet.gov.uk/supplierspend,Thanet District Council,26/09/2014,369479,1343.18,Hydro-Cleansing Ltd,HYD012,Director of Operational Services,Revenue,Premises Related Expenditure
http://thanet.gov.uk/supplierspend,Thanet District Council,26/09/2014,369219,1207.21,J Rospo Building Contractors,ROS001,Director Corp Resources S151,Balance Sheet,Current Assets
http://thanet.gov.uk/supplierspend,Thanet District Council,26/09/2014,369223,980.00,J Rospo Building Contractors,ROS001,Director Corp Resources S151,Balance Sheet,Current Assets
http://thanet.gov.uk/supplierspend,Thanet District Council,26/09/2014,369224,1144.88,J Rospo Building Contractors,ROS001,Director Corp Resources S151,Balance Sheet,Current Assets
http://thanet.gov.uk/supplierspend,Thanet District Council,26/09/2014,369839,809.64,John Gale,GAL001,Director Corp Resources S151,Balance Sheet,Long Term Assets
http://thanet.gov.uk/supplierspend,Thanet District Council,26/09/2014,369841,1049.04,John Gale,GAL001,Director Corp Resources S151,Balance Sheet,Long Term Assets
http://thanet.gov.uk/supplierspend,Thanet District Council,26/09/2014,369844,1195.08,John Gale,GAL001,Director Corp Resources S151,Balance Sheet,Long Term Assets
http://thanet.gov.uk/supplierspend,Thanet District Council,26/09/2014,369848,1574.40,John Gale,GAL001,Director Corp Resources S151,Balance Sheet,Long Term Assets
http://thanet.gov.uk/supplierspend,Thanet District Council,26/09/2014,369229,3449.86,Kent County Council (Kcs),KCC003,Director of Operational Services,Revenue,Supplies and Services
http://thanet.gov.uk/supplierspend,Thanet District Council,26/09/2014,369400,1061.00,Kt Fire Protection Ltd,KTF001,Director of Community Services,Revenue,Premises Related Expenditure
http://thanet.gov.uk/supplierspend,Thanet District Council,26/09/2014,PC5908,56.70,Leafi Ltd,N/A,Director of Community Services,Revenue,Supplies and Services
http://thanet.gov.uk/supplierspend,Thanet District Council,26/09/2014,369853,295.00,Lime Legal Limited,LIM006,Director of Community Services,Revenue,Supplies and Services
http://thanet.gov.uk/supplierspend,Thanet District Council,26/09/2014,PC5862,165.90,London & South East Trains,N/A,East Kent Shared Services,Revenue,Transport Related Expenditure
http://thanet.gov.uk/supplierspend,Thanet District Council,26/09/2014,369472,537.80,Loomis Uk Ltd,LOO002,Director of Operational Services,Revenue,Supplies and Services
http://thanet.gov.uk/supplierspend,Thanet District Council,26/09/2014,369434,413.44,Lyreco Uk Limited,LYR001,Director of Community Services,Revenue,Supplies and Services
http://thanet.gov.uk/supplierspend,Thanet District Council,26/09/2014,PC5850,13.33,Maplin,N/A,Director of Community Services,Revenue,Supplies and Services
http://thanet.gov.uk/supplierspend,Thanet District Council,26/09/2014,368881,7350.75,Michael Page Int Recruitment Ltd,PAG008,Director Corp Resources S151,Revenue,Supplies and Services
http://thanet.gov.uk/supplierspend,Thanet District Council,26/09/2014,369236,4083.75,Michael Page Int Recruitment Ltd,PAG008,Director Corp Resources S151,Revenue,Supplies and Services
http://thanet.gov.uk/supplierspend,Thanet District Council,26/09/2014,369677,4083.75,Michael Page Int Recruitment Ltd,PAG008,Director Corp Resources S151,Revenue,Supplies and Services
http://thanet.gov.uk/supplierspend,Thanet District Council,26/09/2014,369706,2052.00,Michael Page Int Recruitment Ltd,PAG008,Director Corp Resources S151,Revenue,Supplies and Services
http://thanet.gov.uk/supplierspend,Thanet District Council,26/09/2014,PC5884,40.08,Miles Bar,N/A,Director of Community Services,Revenue,Supplies and Services
http://thanet.gov.uk/supplierspend,Thanet District Council,26/09/2014,369323,7840.00,Millchris Developments Limited,MIL044,Director of Community Services,Revenue,Supplies and Services
http://thanet.gov.uk/supplierspend,Thanet District Council,26/09/2014,PC5869,419.99,Murrell Trading Ltd,N/A,Director of Operational Services,Revenue,Supplies and Services
http://thanet.gov.uk/supplierspend,Thanet District Council,26/09/2014,PC5870,419.99,Murrell Trading Ltd,N/A,Director of Operational Services,Revenue,Supplies and Services
http://thanet.gov.uk/supplierspend,Thanet District Council,26/09/2014,369787,4000.00,Neopost Ltd Credifon,NEO002,Director of Community Services,Revenue,Supplies and Services
http://thanet.gov.uk/supplierspend,Thanet District Council,26/09/2014,369842,8742.00,Northwood Builders,NOR002,Director Corp Resources S151,Balance Sheet,Long Term Assets
http://thanet.gov.uk/supplierspend,Thanet District Council,26/09/2014,368939,297.64,Orbis Protect Limited,ORB009,Director Corp Resources S151,Revenue,Supplies and Services
http://thanet.gov.uk/supplierspend,Thanet District Council,26/09/2014,369830,1200.00,Osborne Richardson Limited,OSB009,Director of Community Services,Revenue,Supplies and Services
http://thanet.gov.uk/supplierspend,Thanet District Council,26/09/2014,369831,1200.00,Osborne Richardson Limited,OSB009,Director of Community Services,Revenue,Supplies and Services
http://thanet.gov.uk/supplierspend,Thanet District Council,26/09/2014,369832,1200.00,Osborne Richardson Limited,OSB009,Director of Community Services,Revenue,Supplies and Services
http://thanet.gov.uk/supplierspend,Thanet District Council,26/09/2014,369833,1200.00,Osborne Richardson Limited,OSB009,Director of Community Services,Revenue,Supplies and Services
http://thanet.gov.uk/supplierspend,Thanet District Council,26/09/2014,369834,1200.00,Osborne Richardson Limited,OSB009,Director of Community Services,Revenue,Supplies and Services
http://thanet.gov.uk/supplierspend,Thanet District Council,26/09/2014,369835,1200.00,Osborne Richardson Limited,OSB009,Director of Community Services,Revenue,Supplies and Services
http://thanet.gov.uk/supplierspend,Thanet District Council,26/09/2014,PC5885,35.97,Paypal: 123 Reg,N/A,Director Corp Resources S151,Revenue,Supplies and Services
http://thanet.gov.uk/supplierspend,Thanet District Council,26/09/2014,PC5844,250.00,Possessions Online,N/A,Director of Community Services,Revenue,Supplies and Services
http://thanet.gov.uk/supplierspend,Thanet District Council,26/09/2014,PC5845,250.00,Possessions Online,N/A,Director of Community Services,Revenue,Supplies and Services
http://thanet.gov.uk/supplierspend,Thanet District Council,26/09/2014,PC5846,250.00,Possessions Online,N/A,Director of Community Services,Revenue,Supplies and Services
http://thanet.gov.uk/supplierspend,Thanet District Council,26/09/2014,PC5847,110.00,Possessions Online,N/A,Director of Community Services,Revenue,Supplies and Services
http://thanet.gov.uk/supplierspend,Thanet District Council,26/09/2014,PC5871,250.00,Possessions Online,N/A,Director of Community Services,Revenue,Supplies and Services
http://thanet.gov.uk/supplierspend,Thanet District Council,26/09/2014,PC5928,250.00,Possessions Online,N/A,Director of Community Services,Revenue,Supplies and Services
http://thanet.gov.uk/supplierspend,Thanet District Council,26/09/2014,368874,710.00,Quality Garden Supplies Limited,QUA012,Director of Operational Services,Revenue,Premises Related Expenditure
http://thanet.gov.uk/supplierspend,Thanet District Council,26/09/2014,369459,927.50,R Cannon,CAN007,Director of Operational Services,Revenue,Supplies and Services
http://thanet.gov.uk/supplierspend,Thanet District Council,26/09/2014,369226,400.00,R J Broadley Tree Surgery,RJB002,Director of Operational Services,Revenue,Premises Related Expenditure
http://thanet.gov.uk/supplierspend,Thanet District Council,26/09/2014,369227,450.00,R J Broadley Tree Surgery,RJB002,Director of Operational Services,Revenue,Premises Related Expenditure
http://thanet.gov.uk/supplierspend,Thanet District Council,26/09/2014,369228,450.00,R J Broadley Tree Surgery,RJB002,Director of Operational Services,Revenue,Premises Related Expenditure
http://thanet.gov.uk/supplierspend,Thanet District Council,26/09/2014,369289,4834.00,Rentokil Initial Uk Ltd,REN002,Director Corp Resources S151,Balance Sheet,Long Term Assets
http://thanet.gov.uk/supplierspend,Thanet District Council,26/09/2014,368932,400.00,Rippleffect,RIP001,Director of Community Services,Revenue,Supplies and Services
http://thanet.gov.uk/supplierspend,Thanet District Council,26/09/2014,PC5912,24.92,Royal Albion,N/A,Director of Operational Services,Revenue,Supplies and Services
http://thanet.gov.uk/supplierspend,Thanet District Council,26/09/2014,368869,2187.29,Royal Mail,ROY004,Director Corp Resources S151,Revenue,Supplies and Services
http://thanet.gov.uk/supplierspend,Thanet District Council,26/09/2014,369271,2071.07,Royal Mail,ROY004,Director Corp Resources S151,Revenue,Supplies and Services
http://thanet.gov.uk/supplierspend,Thanet District Council,26/09/2014,369482,1957.50,Sellick Partnership Group Ltd,SEL011,Director Corp Resources S151,Revenue,Supplies and Services
http://thanet.gov.uk/supplierspend,Thanet District Council,26/09/2014,369491,580.30,Sellick Partnership Group Ltd,SEL011,Director Corp Resources S151,Revenue,Employees
http://thanet.gov.uk/supplierspend,Thanet District Council,26/09/2014,369492,900.00,Sellick Partnership Group Ltd,SEL011,Director of Community Services,Revenue,Supplies and Services
http://thanet.gov.uk/supplierspend,Thanet District Council,26/09/2014,369215,935.44,Signway Supplies (Datchet) Limited,SIG013,Director of Operational Services,Revenue,Premises Related Expenditure
http://thanet.gov.uk/supplierspend,Thanet District Council,26/09/2014,369847,15250.00,South East Building Company Limited,SEB001,Director Corp Resources S151,Balance Sheet,Long Term Assets
http://thanet.gov.uk/supplierspend,Thanet District Council,26/09/2014,369481,248.40,Spaldings  Ltd,SPA006,Director of Operational Services,Revenue,Supplies and Services
http://thanet.gov.uk/supplierspend,Thanet District Council,26/09/2014,369343,765.54,Sparshatts Of Kent Ltd,SPA008,Director Corp Resources S151,Revenue,Transport Related Expenditure
http://thanet.gov.uk/supplierspend,Thanet District Council,26/09/2014,PC5837,3.90,Standfast,N/A,Director of Community Services,Revenue,Supplies and Services
http://thanet.gov.uk/supplierspend,Thanet District Council,26/09/2014,PC5838,6.80,Standfast,N/A,Director of Community Services,Revenue,Supplies and Services
http://thanet.gov.uk/supplierspend,Thanet District Council,26/09/2014,PC5840,52.29,Standfast,N/A,Director of Operational Services,Revenue,Supplies and Services
http://thanet.gov.uk/supplierspend,Thanet District Council,26/09/2014,369468,417.60,Stokes Bros,STO001,Director of Operational Services,Revenue,Premises Related Expenditure
http://thanet.gov.uk/supplierspend,Thanet District Council,26/09/2014,PC5843,32.50,Tesco,N/A,Director of Operational Services,Revenue,Supplies and Services
http://thanet.gov.uk/supplierspend,Thanet District Council,26/09/2014,PC5913,8.00,Tesco,N/A,Director of Operational Services,Revenue,Supplies and Services
http://thanet.gov.uk/supplierspend,Thanet District Council,26/09/2014,PC5923,4.41,Tesco,N/A,Director of Operational Services,Revenue,Supplies and Services
http://thanet.gov.uk/supplierspend,Thanet District Council,26/09/2014,369221,1495.00,The College Of Estate Management,COL003,Director Corp Resources S151,Revenue,Employees
http://thanet.gov.uk/supplierspend,Thanet District Council,26/09/2014,PC5932,648.00,Thomas Telford Ltd,N/A,Director of Operational Services,Revenue,Supplies and Services
http://thanet.gov.uk/supplierspend,Thanet District Council,26/09/2014,369398,1750.00,Thomson Snell & Passmore,THO016,Director of Community Services,Revenue,Supplies and Services
http://thanet.gov.uk/supplierspend,Thanet District Council,26/09/2014,PC5883,87.40,Tp Margate,N/A,Director of Community Services,Revenue,Premises Related Expenditure
http://thanet.gov.uk/supplierspend,Thanet District Council,26/09/2014,PC5835,371.00,Trimble Europe Bv,N/A,Director Corp Resources S151,Revenue,Supplies and Services
http://thanet.gov.uk/supplierspend,Thanet District Council,26/09/2014,369840,6747.00,Trueden Disability Adaptations Ltd,TRU012,Director Corp Resources S151,Balance Sheet,Long Term Assets
http://thanet.gov.uk/supplierspend,Thanet District Council,26/09/2014,369845,3365.00,Trueden Disability Adaptations Ltd,TRU012,Director Corp Resources S151,Balance Sheet,Long Term Assets
http://thanet.gov.uk/supplierspend,Thanet District Council,26/09/2014,PC5856,22.00,Tunbridge Wells Reg,N/A,East Kent Shared Services,Revenue,Supplies and Services
http://thanet.gov.uk/supplierspend,Thanet District Council,26/09/2014,366595,2400.00,Uplands Engineering Ltd,UPL001,Director of Operational Services,Revenue,Supplies and Services
http://thanet.gov.uk/supplierspend,Thanet District Council,26/09/2014,PC5876,25.00,Virgin Trains,N/A,Director of Operational Services,Revenue,Transport Related Expenditure
http://thanet.gov.uk/supplierspend,Thanet District Council,26/09/2014,PC5890,212.28,Wandfluh Uk Ltd,N/A,Director of Operational Services,Revenue,Transport Related Expenditure
http://thanet.gov.uk/supplierspend,Thanet District Council,26/09/2014,PC5853,71.60,Webtis,N/A,Director of Community Services,Revenue,Transport Related Expenditure
http://thanet.gov.uk/supplierspend,Thanet District Council,26/09/2014,PC5854,150.40,Webtis,N/A,East Kent Shared Services,Revenue,Transport Related Expenditure
http://thanet.gov.uk/supplierspend,Thanet District Council,26/09/2014,PC5855,60.10,Webtis,N/A,Director Corp Resources S151,Revenue,Transport Related Expenditure
http://thanet.gov.uk/supplierspend,Thanet District Council,26/09/2014,PC5859,75.20,Webtis,N/A,Director Corp Resources S151,Revenue,Transport Related Expenditure
http://thanet.gov.uk/supplierspend,Thanet District Council,26/09/2014,PC5863,69.60,Webtis,N/A,East Kent Shared Services,Revenue,Transport Related Expenditure
http://thanet.gov.uk/supplierspend,Thanet District Council,26/09/2014,PC5873,58.20,Webtis,N/A,Director Corp Resources S151,Revenue,Transport Related Expenditure
http://thanet.gov.uk/supplierspend,Thanet District Council,26/09/2014,PC5874,58.20,Webtis,N/A,Director of Operational Services,Revenue,Transport Related Expenditure
http://thanet.gov.uk/supplierspend,Thanet District Council,26/09/2014,PC5875,42.20,Webtis,N/A,Director Corp Resources S151,Revenue,Transport Related Expenditure
http://thanet.gov.uk/supplierspend,Thanet District Council,26/09/2014,PC5895,25.80,Webtis,N/A,East Kent Shared Services,Revenue,Transport Related Expenditure
http://thanet.gov.uk/supplierspend,Thanet District Council,26/09/2014,PC5896,54.50,Webtis,N/A,Director Corp Resources S151,Revenue,Transport Related Expenditure
http://thanet.gov.uk/supplierspend,Thanet District Council,26/09/2014,PC5897,88.20,Webtis,N/A,Director Corp Resources S151,Revenue,Transport Related Expenditure
http://thanet.gov.uk/supplierspend,Thanet District Council,26/09/2014,PC5911,60.10,Webtis,N/A,Director Corp Resources S151,Revenue,Transport Related Expenditure
http://thanet.gov.uk/supplierspend,Thanet District Council,26/09/2014,PC5907,5.00,Wilko Retail Ltd,N/A,Director of Operational Services,Revenue,Supplies and Services
http://thanet.gov.uk/supplierspend,Thanet District Council,26/09/2014,PC5848,22.95,Wilko Retails Ltd,N/A,Director of Community Services,Revenue,Supplies and Services
http://thanet.gov.uk/supplierspend,Thanet District Council,26/09/2014,PC5910,6.00,Wm Morrisons,N/A,East Kent Shared Services,Revenue,Supplies and Services
http://thanet.gov.uk/supplierspend,Thanet District Council,26/09/2014,PC5909,34.00,Www.Acenet.Co.Uk,N/A,Director of Operational Services,Revenue,Supplies and Services
http://thanet.gov.uk/supplierspend,Thanet District Council,26/09/2014,PC5889,52.00,www.michaeldark.co.uk,N/A,Director of Operational Services,Revenue,Supplies and Services
http://thanet.gov.uk/supplierspend,Thanet District Council,26/09/2014,368818,9950.00,Your Leisure Kent Limited,YOU016,Director of Community Services,Revenue,Supplies and Services
http://thanet.gov.uk/supplierspend,Thanet District Council,30/09/2014,369802,170.41,Allstar Business Solutions Ltd,ALL038,Director Corp Resources S151,Revenue,Transport Related Expenditure
http://thanet.gov.uk/supplierspend,Thanet District Council,30/09/2014,369802,508.31,Allstar Business Solutions Ltd,ALL038,Director of Operational Services,Revenue,Transport Related Expenditure
http://thanet.gov.uk/supplierspend,Thanet District Council,30/09/2014,369988,2300.00,Audit Commission,AUD001,Director Corp Resources S151,Revenue,Supplies and Services
http://thanet.gov.uk/supplierspend,Thanet District Council,30/09/2014,370033,8825.24,British Telecommunications Plc,BTE005,Director of Operational Services,Revenue,Supplies and Services
http://thanet.gov.uk/supplierspend,Thanet District Council,30/09/2014,369433,680.00,Fox Entrance Systems Limited,FOX011,Director of Operational Services,Revenue,Premises Related Expenditure
http://thanet.gov.uk/supplierspend,Thanet District Council,30/09/2014,370044,142500.00,Gaby Hardwicke,HAR068,Director Corp Resources S151,Balance Sheet,Long Term Assets
http://thanet.gov.uk/supplierspend,Thanet District Council,30/09/2014,369667,1971.41,Mears Ltd,MEA003,Director of Community Services,Revenue,Premises Related Expenditure
http://thanet.gov.uk/supplierspend,Thanet District Council,30/09/2014,369667,1013.98,Mears Ltd,MEA003,Director of Operational Services,Revenue,Premises Related Expenditure
http://thanet.gov.uk/supplierspend,Thanet District Council,30/09/2014,366171,-1033.20,Metric Group Ltd,MET001,Director of Operational Services,Revenue,Supplies and Services
http://thanet.gov.uk/supplierspend,Thanet District Council,30/09/2014,368417,347.76,Metric Group Ltd,MET001,Director of Operational Services,Revenue,Supplies and Services
http://thanet.gov.uk/supplierspend,Thanet District Council,30/09/2014,369826,5556.24,Metric Group Ltd,MET001,Director of Operational Services,Revenue,Supplies and Services
http://thanet.gov.uk/supplierspend,Thanet District Council,30/09/2014,368824,264.25,Neopost Ltd,NEO003,Director Corp Resources S151,Revenue,Supplies and Services
http://thanet.gov.uk/supplierspend,Thanet District Council,30/09/2014,370094,18432.68,Public Works Loan Board,PWL001,Director Corp Resources S151,Balance Sheet,Current Assets
http://thanet.gov.uk/supplierspend,Thanet District Council,30/09/2014,369678,4763.65,Puls Global Ltd,PUL006,Director of Operational Services,Revenue,Supplies and Services
http://thanet.gov.uk/supplierspend,Thanet District Council,30/09/2014,369871,45376.00,Solent Marine Ltd,SOL011,Director Corp Resources S151,Balance Sheet,Long Term Assets
http://thanet.gov.uk/supplierspend,Thanet District Council,30/09/2014,370049,12000.00,Thanet Domestic Violence Forum,TDV001,Director of Community Services,Revenue,Supplies and Services
http://thanet.gov.uk/supplierspend,Thanet District Council,30/09/2014,370041,3318.09,The Acadamy Of Urbanism (No 2) Ltd,ACA009,Director of Community Services,Revenue,Supplies and Services
